Workbook

Sheet FORMULARIO
A1: CODIGO | B1: =+VLOOKUP(I10,deuda,3) -> 
A2: cpo
C7: FECHA DE ESTE ESTADO | E7: 2014-11-30 | F7: =+VLOOKUP(I10,deuda,2,1) -> 
C9: Primer Apellido | D9: Segundo Apellido | F9: Nombre | G9: No código | H9: Fecha incorporación | I9: Identificación
C10: =+IF($I$10=0,"",VLOOKUP($I$10,datos,2,0)) ->  | D10: =+IF($I$10=0,"",VLOOKUP($I$10,datos,3,0)) ->  | F10: =+IF($I$10=0,"",VLOOKUP($I$10,datos,4,0)) ->  | G10: =+IF($I$10=0,"",VLOOKUP($I$10,datos,5,0)) ->  | H10: =+IF($I$10=0,"",VLOOKUP($I$10,datos,6,0)) -> 
C11: Cuota de incorporación:
C12: Modo de pago: | E12: =+IF(G12="",IF(I10=0,"",IF(VLOOKUP(I10,MEP,1)=I10,"REBAJO MEP",IF(VLOOKUP(I10,UCR,1)=I10,"REBAJO UCR",IF(VLOOKUP(I10,INA,1)=I10," REBAJO INA",IF(VLOOKUP(I10,TESORERIA,1)=I10,"REBAJO TESORERIA","DEPOSITO"))))),"") ->  | G12: =+IF(I10=0,"",IF(VLOOKUP(I10,TESORERIA,1)=I10,"REBAJO TESORERIA","")) -> 
C13: Estatus: | E13: =+IF(I10=0,"",IF(E14=0," AL DIA",IF(VLOOKUP(I10,AP,1)=I10,"ARREGLO DE PAGO"," MOROSIDAD"))) -> 
C14: Monto adeudado: | E14: =+IF(I10=0,"",IF(VLOOKUP(I10,deuda,5,0)<0,0,(VLOOKUP(I10,deuda,5,0)))) -> 
C15: Si usted considera que su estado de cuenta es incorrecto, por favor hacer llegar un correo a contabilidad.cpo@gmail.com indicando el error y adjuntando los documentos probatorios respectivos.

Sheet DATOS (hidden)
B1: No identificación | C1: Primer Apellido | D1: Segundo Apellido | E1: Nombre | F1: No código | G1: fecha incorporación
B2: 102810097 | C2: Muñoz | D2: Bustos | E2: Jeannette | F2: 16 | G2: 2010-11-27
B3: 103950660 | C3: Estrada | D3: Espinoza | E3: María de los Angeles | F3: 155 | G3: 2010-11-27
B4: 103960341 | C4: Vargas | D4: Cordero | E4: Zoila Rosa | F4: 3 | G4: 2010-11-27
B5: 104100007 | C5: Fournier | D5: Solano | E5: Patrica | F5: 709 | G5: 2011-06-24
B6: 104140726 | C6: Artavia | D6: Gónzalez | E6: Norma María | F6: 1276 | G6: 2012-09-21
B7: 104160544 | C7: Villarreal | D7: Montoya | E7: Cecilia | F7: 473 | G7: 2011-02-23
B8: 104240314 | C8: Alvarez | D8: Guzmán | E8: Gloria Elena | F8: 83 | G8: 2010-11-27
B9: 104440254 | C9: Barrantes | D9: Angulo | E9: Luis Mariano | F9: 556 | G9: 2011-04-08
B10: 104630129 | C10: Mena | D10: Hernández | E10: Maritza | F10: 850 | G10: 2011-10-28
B11: 104690824 | C11: Vargas | D11: Leitón | E11: Mayra | F11: 1567 | G11: 2013-11-14
B12: 104710614 | C12: Quirós | D12: Hidalgo | E12: Rodolfo | F12: 692 | G12: 2011-08-05
B13: 104770169 | C13: Quirós | D13: Umaña | E13: María Patricia | F13: 1079 | G13: 2011-12-02
B14: 104790944 | C14: Alfaro | D14: Monge | E14: Rolando | F14: 639 | G14: 2011-06-24
B15: 104830499 | C15: Arguedas | D15: Negrini | E15: Irma | F15: 5 | G15: 2010-11-27
B16: 104840671 | C16: Alvarado | D16: Arias | E16: Marta Eugenia | F16: 176 | G16: 2010-11-27
B17: 104860881 | C17: Cubero | D17: Madrigal | E17: Martha Eugenia | F17: 995 | G17: 2011-11-30
B18: 104860928 | C18: Núñez | D18: Martínez | E18: Lizbeth María | F18: 141 | G18: 2010-11-27
B19: 104880266 | C19: Vega | D19: Cordero | E19: Beatriz Francisca | F19: 973 | G19: 2011-11-30
B20: 104940545 | C20: Orozco | D20: Carballo | E20: Rosa María | F20: 208 | G20: 2010-11-27
B21: 104970736 | C21: Camacho | D21: Ramírez | E21: María de los Ángeles | F21: 1562 | G21: 2013-11-14
B22: 104980364 | C22: Cabrera | D22: Chaves | E22: Nubia María | F22: 196 | G22: 2010-11-27
B23: 105000898 | C23: Bonilla | D23: Ureña | E23: Zaida Coralia | F23: 552 | G23: 2011-04-02
B24: 105020549 | C24: Salazar | D24: Guerrero | E24: Leila | F24: 131 | G24: 2010-11-27
B25: 105020706 | C25: Marín | D25: Morales | E25: Mayra Mayela | F25: 1196 | G25: 2012-03-30
B26: 105160427 | C26: Mora | D26: Valverde | E26: José Antonio | F26: 525 | G26: 2011-04-02
B27: 105170341 | C27: González | D27: Jiménez | E27: Ana Betty | F27: 498 | G27: 2011-04-02
B28: 105190804 | C28: Vargas | D28: Nieto | E28: Ana Lidia | F28: 608 | G28: 2011-05-14
B29: 105200164 | C29: Arias | D29: Fonseca | E29: Jaime Alexander | F29: 98 | G29: 2010-11-27
B30: 105230920 | C30: Mazariegos | D30: Palcino | E30: Sonia | F30: 1088 | G30: 2011-12-02
B31: 105260979 | C31: Román | D31: Morales | E31: Freddy Alberto | F31: 1684 | G31: 2014-06-20
B32: 105270911 | C32: Solano | D32: Mesén | E32: María Isabel | F32: 1242 | G32: 2012-07-20
B33: 105290219 | C33: Ugalde | D33: Morales | E33: Ivannia | F33: 1067 | G33: 2011-12-02
B34: 105310350 | C34: Rodríguez | D34: Hernández | E34: María del Rocío | F34: 1076 | G34: 2011-12-02
B35: 105320052 | C35: Alpízar | D35: Castillo | E35: Sonia | F35: 818 | G35: 2011-09-30
B36: 105350115 | C36: Cascante | D36: Fallas | E36: María de los Ángeles | F36: 1193 | G36: 2012-03-30
B37: 105380116 | C37: Carmona | D37: Valverde | E37: Virginia | F37: 472 | G37: 2011-02-23
B38: 105380248 | C38: Hidalgo | D38: Vargas | E38: Alba Iris | F38: 1619 | G38: 2014-02-21
B39: 105400370 | C39: Guzmán | D39: Hernández | E39: Ana Luisa | F39: 1181 | G39: 2012-03-30
B40: 105410068 | C40: Araya | D40: Jiménez | E40: Grettel | F40: 845 | G40: 2011-10-28
B41: 105450766 | C41: Zúñiga | D41: Gamboa | E41: Carmen Guiselle | F41: 1631 | G41: 2014-02-21
B42: 105470511 | C42: Mesén | D42: Quesada | E42: Mayra Marlene | F42: 297 | G42: 2011-01-18
B43: 105510478 | C43: Quirós | D43: Carranza | E43: María de los Ángeles | F43: 254 | G43: 2011-01-18
B44: 105510718 | C44: Castillo | D44: Campos | E44: Zaida | F44: 747 | G44: 2011-07-30
B45: 105510758 | C45: Fonseca | D45: Rodríguez | E45: Magdalena | F45: 1247 | G45: 2012-07-20
B46: 105570494 | C46: Gould | D46: Marchini | E46: Adela Cristina | F46: 831 | G46: 2011-10-28
B47: 105600167 | C47: Barrientos | D47: Sibaja | E47: Leda María | F47: 1476 | G47: 2013-07-19
B48: 105620254 | C48: Guevara | D48: Vicente | E48: Carmen María | F48: 251 | G48: 2011-01-18
B49: 105630155 | C49: Orozco | D49: Álvarez | E49: Patricia | F49: 1698 | G49: 2014-06-20
B50: 105640130 | C50: Segura | D50: Hernández | E50: Shirley María | F50: 217 | G50: 2010-11-27
B51: 105640829 | C51: Zúñiga | D51: Vega | E51: Marcela | F51: 434 | G51: 2011-02-23
B52: 105660138 | C52: Salazar | D52: Artavia | E52: Javier | F52: 1254 | G52: 2012-07-20
B53: 105660170 | C53: López | D53: Padilla | E53: Guiselle María | F53: 806 | G53: 2011-09-30
B54: 105680127 | C54: Muñoz | D54: Rojas | E54: Marjorie | F54: 1082 | G54: 2011-12-02
B55: 105700703 | C55: Zamora | D55: Arce | E55: Flor María | F55: 558 | G55: 2011-04-02
B56: 105770528 | C56: Hidalgo | D56: Chinchilla | E56: María Isabel | F56: 397 | G56: 2011-02-23
B57: 105770561 | C57: Chinchilla | D57: Jiménez | E57: Roxana | F57: 474 | G57: 2011-02-23
B58: 105780753 | C58: Agüero | D58: Castro | E58: María Ercilia | F58: 1077 | G58: 2011-12-02
B59: 105810408 | C59: Sandí | D59: Solano | E59: Alexander Antonio | F59: 834 | G59: 2011-10-28
B60: 105810855 | C60: González | D60: Arroyo | E60: Rolando | F60: 12 | G60: 2010-11-27
B61: 105830218 | C61: Mora | D61: Carrión | E61: Xenia | F61: 231 | G61: 2010-11-27
B62: 105840212 | C62: Santiago | D62: Flores | E62: Yazmín Gerogina | F62: 236 | G62: 2010-11-27
B63: 105840366 | C63: Camacho | D63: Barquero | E63: Grace | F63: 1331 | G63: 2012-11-30
B64: 105840601 | C64: Sánchez | D64: Cervantes | E64: Róger Guillermo | F64: 407 | G64: 2011-02-23
B65: 105860873 | C65: Garbanzo | D65: Trejos | E65: Marianela | F65: 588 | G65: 2011-04-08
B66: 105870158 | C66: Zumbado | D66: Valverde | E66: Grace | F66: 844 | G66: 2011-10-28
B67: 105910626 | C67: Esquivel | D67: López | E67: Xinia | F67: 601 | G67: 2011-04-08
B68: 105920123 | C68: Navarro | D68: Hernández | E68: Ingrid | F68: 326 | G68: 2011-01-18
B69: 105920999 | C69: Pandolfi | D69: Lizano | E69: Maritza | F69: 175 | G69: 2010-11-27
B70: 105940180 | C70: Umaña | D70: Rojas | E70: Hannia María | F70: 344 | G70: 2011-02-23
B71: 105940267 | C71: Carvajal | D71: Rivera | E71: Juan Antonio | F71: 117 | G71: 2010-11-27
B72: 105950429 | C72: Noguera | D72: Moraga | E72: María Ester | F72: 339 | G72: 2011-02-23
B73: 105990060 | C73: Rojas | D73: Camacho | E73: Dunia | F73: 1024 | G73: 2011-12-02
B74: 105990973 | C74: Ureña | D74: Salazar | E74: Virya | F74: 225 | G74: 2010-11-27
B75: 106000472 | C75: Naranjo | D75: Pereira | E75: María Luisa | F75: 300 | G75: 2011-02-23
B76: 106030988 | C76: Salazar | D76: Rivera | E76: Yamileth | F76: 698 | G76: 2011-06-24
B77: 106040006 | C77: Campos | D77: May | E77: Lizett | F77: 448 | G77: 2011-02-23
B78: 106040089 | C78: Mendoza | D78: Dávila | E78: Georgina Rebeca | F78: 487 | G78: 2011-02-23
B79: 106040538 | C79: Retana | D79: Sánchez | E79: Yamileth | F79: 1623 | G79: 2014-02-21
B80: 106070336 | C80: Mora | D80: Monge | E80: Gioconda María | F80: 1673 | G80: 2014-06-20
B81: 106090229 | C81: Escoto | D81: Molina | E81: Viviana | F81: 229 | G81: 2010-11-27
B82: 106120663 | C82: Ulate | D82: Fallas | E82: Sonia del Carmen | F82: 222 | G82: 2010-11-27
B83: 106130389 | C83: Araya | D83: Pérez | E83: Beatriz | F83: 665 | G83: 2013-11-14
B84: 106160094 | C84: Delgado | D84: Figueroa | E84: Juanita | F84: 808 | G84: 2011-09-30
B85: 106170787 | C85: Cordero | D85: Sandí | E85: María Lilliana | F85: 661 | G85: 2011-05-27
B86: 106210135 | C86: Chaves | D86: Rojas | E86: Gerardina | F86: 672 | G86: 2011-06-24
B87: 106220904 | C87: Azofeifa | D87: Castro | E87: Irene | F87: 1474 | G87: 2013-08-30
B88: 106220979 | C88: Masís | D88: Garro | E88: José Joaquín | F88: 491 | G88: 2011-02-23
B89: 106260680 | C89: Garro | D89: Montoya | E89: Sandra Anabell | F89: 414 | G89: 2011-04-02
B90: 106260879 | C90: García | D90: Vega | E90: Ginna María | F90: 368 | G90: 2011-02-23
B91: 106270617 | C91: Chavarría | D91: Rojas | E91: Víctor Hugo | F91: 1612 | G91: 2014-02-21
B92: 106290100 | C92: Gómez | D92: Salgado | E92: Merceditas | F92: 185 | G92: 2010-11-27
B93: 106300007 | C93: Castro | D93: Camacho | E93: Julia María | F93: 384 | G93: 2011-02-23
B94: 106340862 | C94: Chacón | D94: Granja | E94: Alba Iris | F94: 1714 | G94: 2014-08-29
B95: 106360668 | C95: Parrales | D95: Rodríguez | E95: Sonia | F95: 1123 | G95: 2012-01-20
B96: 106360859 | C96: Cervantes | D96: Retana | E96: Elva María | F96: 653 | G96: 2013-11-14
B97: 106370023 | C97: Masís | D97: Murcia | E97: Beatriz | F97: 502 | G97: 2011-04-02
B98: 106380561 | C98: Carballo | D98: González | E98: Margot | F98: 446 | G98: 2011-02-23
B99: 106430141 | C99: Zúñiga | D99: López | E99: Ana María | F99: 610 | G99: 2011-05-14
B100: 106440327 | C100: Ruh | D100: Mesén | E100: Ana Patricia | F100: 4 | G100: 2010-11-27
B101: 106480747 | C101: Hidalgo | D101: Monge | E101: Lilliam | F101: 531 | G101: 2011-06-24
B102: 106490395 | C102: Valverde | D102: Herrera | E102: Vilma Patricia | F102: 1605 | G102: 2014-01-17
B103: 106500656 | C103: Aragón | D103: Durán | E103: Julio | F103: 1190 | G103: 2012-03-30
B104: 106510164 | C104: Campos | D104: Fernández | E104: Karolyn Eugenia | F104: 1326 | G104: 2012-11-30
B105: 106520280 | C105: Gómez | D105: Villafuerte | E105: Roy Edgardo | F105: 211 | G105: 2010-11-27
B106: 106560746 | C106: Zumbado | D106: Ballestero | E106: Gina María | F106: 1737 | G106: 2014-08-29
B107: 106610762 | C107: Badilla | D107: Artavia | E107: Yolanda | F107: 603 | G107: 2011-04-08
B108: 106610834 | C108: Madrigal | D108: Castro | E108: José Fabio | F108: 465 | G108: 2011-04-02
B109: 106630850 | C109: Herrera | D109: Quirós | E109: Leticia | F109: 891 | G109: 2011-11-11
B110: 106640745 | C110: Chacón | D110: Barrantes | E110: Ana María | F110: 568 | G110: 2011-08-05
B111: 106700819 | C111: Meléndez | D111: Cabezas | E111: Vivian | F111: 226 | G111: 2010-11-27
B112: 106710104 | C112: Porras | D112: Sánchez | E112: Ana Cecilia | F112: 342 | G112: 2011-01-18
B113: 106730611 | C113: Jiménez | D113: Segura | E113: Flor Isabel | F113: 1483 | G113: 2013-07-19
B114: 106770626 | C114: Fallas | D114: Vargas | E114: Manuel Arturo | F114: 150 | G114: 2010-11-27
B115: 106790148 | C115: Méndez | D115: Castro | E115: María Elena | F115: 895 | G115: 2011-11-11
B116: 106800182 | C116: Solis | D116: Bonilla | E116: Silvia Yorleni | F116: 1502 | G116: 2013-08-13
B117: 106840726 | C117: Cascante | D117: Morales | E117: Virginia | F117: 319 | G117: 2011-01-18
B118: 106850423 | C118: Barrientos | D118: Soto | E118: Sarita | F118: 215 | G118: 2010-11-27
B119: 106850932 | C119: Vega | D119: Fallas | E119: Beatriz Eugenia | F119: 49 | G119: 2010-11-27
B120: 106870938 | C120: Serrano | D120: Delgado | E120: Lourdes María | F120: 1625 | G120: 2014-02-21
B121: 106880374 | C121: Vargas | D121: Acuña | E121: Lilliana | F121: 136 | G121: 2010-11-27
B122: 106910043 | C122: Godínez | D122: Guzmán | E122: Ely | F122: 72 | G122: 2010-11-27
B123: 106910070 | C123: Solís | D123: Castro | E123: Gerardo | F123: 878 | G123: 2011-11-11
B124: 106950232 | C124: Mora | D124: Salas | E124: Silvia Lorena | F124: 960 | G124: 2011-11-18
B125: 106950451 | C125: Montes | D125: López | E125: Ana Lorena | F125: 1701 | G125: 2014-06-20
B126: 106960280 | C126: Aguilar | D126: Trejos | E126: Yancy Azalea | F126: 914 | G126: 2011-11-11
B127: 106960975 | C127: Laínez | D127: Murillo | E127: Ana Margarita | F127: 1514 | G127: 2013-08-30
B128: 106980357 | C128: Zúñiga | D128: Cervantes | E128: Saray | F128: 322 | G128: 2011-01-18
B129: 107000020 | C129: Velásquez | D129: Chavarría | E129: María del Milagro | F129: 1543 | G129: 2013-09-27
B130: 107000474 | C130: Valverde | D130: Campos | E130: Yanury | F130: 916 | G130: 2011-11-11
B131: 107030323 | C131: Vargas | D131: Molina | E131: Inés Gabriela | F131: 654 | G131: 2011-05-27
B132: 107030333 | C132: Rojas | D132: Gamboa | E132: César | F132: 463 | G132: 2011-02-23
B133: 107070732 | C133: Arias | D133: Agüero | E133: Doris Patricia | F133: 825 | G133: 2011-09-30
B134: 107080733 | C134: Valenciano | D134: Canet | E134: Ana Grettel | F134: 666 | G134: 2011-06-24
B135: 107100475 | C135: Carrillo | D135: Masís | E135: Marilú | F135: 721 | G135: 2011-09-30
B136: 107200336 | C136: Ceciliano | D136: Koslab | E136: Jacqueline | F136: 880 | G136: 2011-11-11
B137: 107230709 | C137: Masís | D137: Rodríguez | E137: Ivonne Patricia | F137: 317 | G137: 2011-01-18
B138: 107250265 | C138: Ortega | D138: Rojas | E138: Juan | F138: 1677 | G138: 2014-06-20
B139: 107280171 | C139: Gamboa | D139: Jara | E139: Rita | F139: 966 | G139: 2011-11-18
B140: 107360975 | C140: Badilla | D140: López | E140: Olivey María | F140: 1608 | G140: 2014-02-21
B141: 107370147 | C141: Cuéllar | D141: Gómez | E141: Sandra | F141: 252 | G141: 2011-01-18
B142: 107410170 | C142: Villalobos | D142: Cordero | E142: Ana Lucía | F142: 37 | G142: 2010-11-27
B143: 107420568 | C143: Benavides | D143: Fonseca | E143: Marisol | F143: 993 | G143: 2011-11-30
B144: 107430355 | C144: Umaña | D144: Cruz | E144: Marlen´Yorleni | F144: 537 | G144: 2011-04-02
B145: 107430802 | C145: Trejos | D145: Granados | E145: Oswaldo | F145: 405 | G145: 2011-02-23
B146: 107440158 | C146: Jiménez | D146: Padilla | E146: Rodrigo Iván | F146: 638 | G146: 2011-05-14
B147: 107450806 | C147: Agüero | D147: Campos | E147: Manuel Enrique | F147: 1473 | G147: 2013-06-28
B148: 107500376 | C148: Araya | D148: Rojas | E148: Cynthia Mayela | F148: 285 | G148: 2011-01-18
B149: 107610671 | C149: Ballestero | D149: Rojas | E149: Jorge Alberto | F149: 1646 | G149: 2014-04-25
B150: 107650095 | C150: Miranda | D150: Sánchez | E150: Marta Mayela | F150: 1293 | G150: 2012-10-18
B151: 107650573 | C151: Porras | D151: Durán | E151: Cynthia Patricia | F151: 484 | G151: 2012-01-20
B152: 107690211 | C152: Mena | D152: Badilla | E152: Luisa Ileana | F152: 393 | G152: 2011-02-23
B153: 107700099 | C153: Arguedas | D153: Brenes | E153: Gustavo Adolfo | F153: 1708 | G153: 2014-08-29
B154: 107740036 | C154: Oconitrillo | D154: Monge | E154: Yorleny María | F154: 1014 | G154: 2011-11-30
B155: 107760084 | C155: González | D155: Sandoval | E155: German Eduardo | F155: 1512 | G155: 2013-09-27
B156: 107760736 | C156: Céspedes | D156: Rodríguez | E156: Olga Marta | F156: 965 | G156: 2011-11-18
B157: 107830006 | C157: Castro | D157: García | E157: Cynthia | F157: 62 | G157: 2010-11-27
B158: 107840500 | C158: González | D158: Sáenz | E158: Maribell | F158: 1080 | G158: 2011-12-02
B159: 107850379 | C159: Morgan | D159: Mora | E159: Helen | F159: 485 | G159: 2011-06-24
B160: 107860398 | C160: Jiménez | D160: Oviedo | E160: Gustavo Adolfo | F160: 1531 | G160: 2013-09-27
B161: 107860950 | C161: Vargas | D161: Segura | E161: Kattia Virginia | F161: 1330 | G161: 2012-11-30
B162: 107880103 | C162: Garcia | D162: Muñoz | E162: Magdalena | F162: 1265 | G162: 2012-09-21
B163: 107880107 | C163: Bermúdez | D163: Ugalde | E163: María Antonieta | F163: 1224 | G163: 2012-07-20
B164: 107960330 | C164: Quesada | D164: Orozco | E164: Mariella | F164: 662 | G164: 2011-05-27
B165: 107980946 | C165: Godínez | D165: Fallas | E165: Eugenia | F165: 430 | G165: 2011-02-23
B166: 108000846 | C166: Solís | D166: Solís | E166: Kattia | F166: 1147 | G166: 2012-01-20
B167: 108040678 | C167: Castillo | D167: Linares | E167: Yerly | F167: 1409 | G167: 2013-04-26
B168: 108050634 | C168: Burke | D168: Coto | E168: Alejeandra | F168: 1251 | G168: 2012-07-20
B169: 108110079 | C169: Morales | D169: Monge | E169: María Adelita | F169: 1354 | G169: 2013-01-18
B170: 108110079 | C170: Morales | D170: Monge | E170: Maria Adelita | F170: 1354 | G170: 2013-01-18
B171: 108120390 | C171: Jiménez | D171: Badilla | E171: Lucrecia | F171: 893 | G171: 2011-11-11
B172: 108130443 | C172: Zamora | D172: Zamora | E172: Sara Leticia | F172: 1546 | G172: 2013-10-25
B173: 108130567 | C173: Rojas | D173: Murillo | E173: Grettel Marcela | F173: 704 | G173: 2011-06-24
B174: 108130794 | C174: Zúñiga | D174: Rosales | E174: Sherry | F174: 1087 | G174: 2011-12-02
B175: 108170070 | C175: Badilla | D175: Calderón | E175: Ingrid Vanessa | F175: 1576 | G175: 2013-12-06
B176: 108170878 | C176: Granados | D176: Núñez | E176: Zulay | F176: 919 | G176: 2011-11-11
B177: 108170888 | C177: Garita | D177: Oviedo | E177: Medelyn | F177: 592 | G177: 2011-04-08
B178: 108200849 | C178: Mora | D178: Navarro | E178: Ana Margoth | F178: 1320 | G178: 2012-11-30
B179: 108200880 | C179: Rodríguez | D179: Palomo | E179: Rebeca del Rocío | F179: 206 | G179: 2010-11-27
B180: 108220064 | C180: Coto | D180: Vargas | E180: Adriana | F180: 649 | G180: 2011-10-28
B181: 108220114 | C181: Alvarado | D181: Cordero | E181: Sylvia Elena | F181: 489 | G181: 2011-02-23
B182: 108230002 | C182: Cascante | D182: Chinchilla | E182: Karol Susana | F182: 1510 | G182: 2013-08-30
B183: 108230121 | C183: Rivas | D183: Solano | E183: Bernarda | F183: 1538 | G183: 2013-09-27
B184: 108240421 | C184: Masís | D184: Vega | E184: Adela | F184: 832 | G184: 2011-10-28
B185: 108320058 | C185: Benavides | D185: Salas | E185: Lorenzo Osvaldo | F185: 605 | G185: 2011-04-08
B186: 108340261 | C186: Muñoz | D186: Porras | E186: Maria Gabriela | F186: 159 | G186: 2010-11-27
B187: 108360216 | C187: Corrales | D187: Salas | E187: Rodrigo Alberto | F187: 816 | G187: 2011-09-30
B188: 108370490 | C188: Barquero | D188: Villalobos | E188: Maritza | F188: 1044 | G188: 2011-12-02
B189: 108390602 | C189: Bermúdez | D189: Ramírez | E189: Siany | F189: 219 | G189: 2010-11-27
B190: 108410208 | C190: Méndez | D190: Sánchez | E190: Adriana Estela | F190: 17 | G190: 2010-11-27
B191: 108410305 | C191: Campos | D191: Hernández | E191: Luis Roberto | F191: 316 | G191: 2011-06-24
B192: 108410341 | C192: Redondo | D192: Valverde | E192: Yerlania | F192: 1099 | G192: 2012-01-20
B193: 108420897 | C193: Quirós | D193: Quesada | E193: Ana Liga | F193: 867 | G193: 2011-11-11
B194: 108450284 | C194: Sosa | D194: Chavarría | E194: Carolina | F194: 1692 | G194: 2014-06-20
B195: 108460749 | C195: Picado | D195: Calderón | E195: Lucrecia | F195: 953 | G195: 2011-11-18
B196: 108530235 | C196: Muñoz | D196: Mena | E196: Nayiba | F196: 1107 | G196: 2012-01-20
B197: 108550252 | C197: Godínez | D197: Fallas | E197: María Fernanda | F197: 158 | G197: 2010-11-27
B198: 108550306 | C198: Víquez | D198: Bolaños | E198: Henry | F198: 1594 | G198: 2013-12-06
B199: 108580822 | C199: Salazar | D199: Salazar | E199: Manuel Alonso | F199: 1603 | G199: 2014-01-17
B200: 108590510 | C200: Rodríguez | D200: Murillo | E200: Paola | F200: 269 | G200: 2011-01-18
... 1508 more rows

Sheet DEUDA (hidden)
B1: COLEGIO PROF EN ORIENTACION | D1: fecha | E1: 2014-11-30
D2: codigo | E2: CPO 2014
B3: Contabilidad - Reporte de movimientos por cuenta ( Colones )
B5: Movimientos Abiertos y Cerrados - Del día: 01-01-2011 al día: 30-10-2014
A7: Cédula | B7: Código | D7: Nombe | E7: =+E1 -> 2014-11-30 | F7: 2014-08-30
A8: 102810097 | B8: 03-02-M0-0013 | C8: 0302M00013 | D8: MUÑOZ BUSTOS JEANNETTHE | E8: 0 | F8: 0 | G8: =+E8-F8 -> 0 | H8: HACIENDA
A9: 103950660 | B9: 03-02-E0-0016 | C9: 0302E00016 | D9: ESTRADA ESPINOZA MARIA ANGELES | E9: 0 | F9: 0 | G9: 0 | H9: HACIENDA
A10: 103960341 | B10: 03-02-V0-0060 | C10: 0302V00060 | D10: VARGAS CORDERO ZOILA ROSA | E10: 400 | F10: 400 | G10: 0
A11: 104100007 | B11: 03-02-F0-0027 | C11: 0302F00027 | D11: FOURNIER SOLANO PATRICIA | E11: 208112 | F11: 259912 | G11: -51800
A12: 104140726 | B12: 03-02-A0-0139 | C12: 0302A00139 | D12: ARTAVIA GONZALEZ NORMA MARIA | E12: 51251 | F12: 29051 | G12: 22200
A13: 104160544 | B13: 03-02-V0-0052 | C13: 0302V00052 | D13: VILLARREAL MONTOYA CECILIA | E13: 6200 | F13: 6500 | G13: -300
A14: 104240314 | B14: 03-02-A0-0008 | C14: 0302A00008 | D14: ALVAREZ GUZMAN GLORIA ELENA | E14: 0 | F14: 293940 | G14: -293940
A15: 104440254 | B15: 03-02-B0-0014 | C15: 0302B00014 | D15: BARRANTES ANGULO LUIS MARIANO | E15: 14028 | F15: 24028 | G15: -10000 | H15: HACIENDA | I15: ADICIONAL
A16: 104630129 | B16: 03-02-M0-0037 | C16: 0302M00037 | D16: MENA HERBANDEZ MARITZA | E16: 0 | F16: 0 | G16: 0 | H16: HACIENDA
A17: 104690824 | B17: 03-02-V0-0110 | C17: 0302V00110 | D17: VARGAS LEITON MAYRA | E17: 14800 | F17: 65800 | G17: -51000 | H17: INA
A18: 104710614 | B18: 03-02-Q0-0017 | C18: 0302Q00017 | D18: QUIROS HIDALGO RODOLFO | E18: 98028 | F18: 75828 | G18: 22200
A19: 104770169 | B19: 03-02-Q0-0024 | C19: 0302Q00024 | D19: QUIROS UMAÑA MARIA PATRICIA | E19: 0 | F19: 0 | G19: 0 | H19: HACIENDA
A20: 104790944 | B20: 03-02-A0-0029 | C20: 0302A00029 | D20: ALFARO MONGE ROLANDO | E20: 262112 | F20: 239912 | G20: 22200
A21: 104830499 | B21: 03-02-A0-0013 | C21: 0302A00013 | D21: ARGUEDAS NEGRINI IRMA | E21: 22200 | F21: 0 | G21: 22200 | H21: UCR
A22: 104840671 | B22: 03-02-A0-0036 | C22: 0302A00036 | D22: ALVARADO ARIAS MARTA EUGENIA | E22: 0 | F22: 0 | G22: 0 | H22: HACIENDA | I22: ARREGLO
A23: 104860881 | B23: 03-02-C0-0146 | C23: 0302C00146 | D23: CUBERO MADRIGAL MARTA EUGENIA | E23: 0 | F23: 0 | G23: 0 | H23: HACIENDA
A24: 104860928 | B24: 03-02-N0-0012 | C24: 0302N00012 | D24: NUÑEZ MARTINEZ LIZBETH | E24: 58787 | F24: 71387 | G24: -12600 | H24: HACIENDA | I24: ADICIONAL
A25: 104880266 | B25: 03-02-V0-0078 | C25: 0302V00078 | D25: VEGA CORDERO BEATRIZ FRANCISCA | E25: 0 | F25: 0 | G25: 0 | H25: HACIENDA
A26: 104940545 | B26: 03-02-O0-0012 | C26: 0302O00012 | D26: OROZCO CARBALLO ROSA MARIA | E26: 0 | F26: 0 | G26: 0
A27: 104970736 | B27: 03-02-C0-0212 | C27: 0302C00212 | D27: CAMACHO RAMIREZ MARIA DE LOS ANGELES | E27: 66600 | F27: 44400 | G27: 22200
A28: 104980364 | B28: 03-02-C0-0014 | C28: 0302C00014 | D28: CABRERA CHAVES NUBIA MARIA | E28: 0 | F28: 0 | G28: 0 | H28: HACIENDA
A29: 105000898 | B29: 03-02-B0-0030 | C29: 0302B00030 | D29: BONILLA UREÑA ZAIDA CORALIA | E29: 14800 | F29: 14800 | G29: 0 | H29: HACIENDA | I29: ADICIONAL
A30: 105020549 | B30: 03-02-S0-0016 | C30: 0302S00016 | D30: SALAZAR GUERRERO LEILA | E30: 22200 | F30: 0 | G30: 22200 | H30: UCR
A31: 105020706 | B31: 03-02-M0-0149 | C31: 0302M00149 | D31: MARIN MORALES MAYRA MAYELA | E31: 0 | F31: 0 | G31: 0 | H31: HACIENDA
A32: 105160427 | B32: 03-02-M0-0073 | C32: 0302M00073 | D32: MORA VALVERDE JOSE ANTONIO | E32: 49350 | F32: 49350 | G32: 0
A33: 105170341 | B33: 03-02-G0-0036 | C33: 0302G00036 | D33: GONZALEZ JIMENEZ ANA BETTY | E33: 7400 | F33: 7400 | G33: 0 | H33: HACIENDA | I33: ADICIONAL
A34: 105190804 | B34: 03-02-V0-0027 | C34: 0302V00027 | D34: VARGAS NIETO ANA LIDIA | E34: -7400 | F34: -7400 | G34: 0 | H34: HACIENDA
A35: 105200164 | B35: 03-02-A0-0014 | C35: 0302A00014 | D35: ARIAS FONSECA ALEXANDER JAIME | E35: 251940 | F35: 258540 | G35: -6600 | H35: HACIENDA | I35: ARREGLO
A36: 105230920 | B36: 03-02-M0-0123 | C36: 0302M00123 | D36: MAZARIEGOS PALACINO SONIA | E36: 9507 | F36: 9507 | G36: 0 | H36: HACIENDA | I36: ADICIONAL
A37: 105260979 | B37: 03-02-R0-0139 | C37: 0302R00139 | D37: ROMAN MORALES FREDDY ALBERTO | E37: 0 | F37: 0 | G37: 0 | H37: HACIENDA
A38: 105270911 | B38: 03-02-S0-0096 | C38: 0302S00096 | D38: SOLANO MESEN MARIA ISABEL | E38: 0 | F38: 0 | G38: 0 | H38: HACIENDA
A39: 105290219 | B39: 03-02-U0-0015 | C39: 0302U00015 | D39: UGALDE MORALES IVANNIA | E39: 0 | F39: 0 | G39: 0 | H39: HACIENDA
A40: 105310350 | B40: 03-02-R0-0082 | C40: 0302R00082 | D40: RODRIGUEZ HERNANDEZ MARIA DEL ROCIO | E40: 29600 | F40: 18500 | G40: =+E40-F40 -> 11100 | H40: HACIENDA | I40: ADICIONAL
A41: 105320052 | B41: 03-02-A0-0033 | C41: 0302A00033 | D41: ALPIZAR CASTILLO SONIA | E41: 51801 | F41: 37001 | G41: 14800 | I41: ARREGLO
A42: 105350115 | B42: 03-02-C0-0169 | C42: 0302C00169 | D42: CASCANTE FALLAS MARIA DE LOS ANGELES | E42: 0 | F42: 0 | G42: 0 | H42: HACIENDA
A43: 105380116 | B43: 03-02-C0-0040 | C43: 0302C00040 | D43: CARMONA VALVERDE VIRGINIA | E43: 14800 | F43: 43856 | G43: -29056
A44: 105380248 | B44: 03-02-H0-0048 | C44: 0302H00048 | D44: HIDALGO VARGAS ALBA IRIS | E44: 7400 | F44: 7400 | G44: 0 | H44: HACIENDA | I44: ADICIONAL
A45: 105400370 | B45: 03-02-G0-0082 | C45: 0302G00082 | D45: GUZMAN HERNANDEZ ANA LUISA | E45: 29600 | F45: 7400 | G45: 22200 | H45: UCR
A46: 105410068 | B46: 03-02-A0-0055 | C46: 0302A00055 | D46: ARAYA JIMENEZ GRETTEL | E46: 0 | F46: 7400 | G46: -7400 | H46: HACIENDA
A47: 105450766 | B47: 03-02-Z0-0037 | C47: 0302Z00037 | D47: ZUÑIGA GAMBOA CARMEN GUISELLE | E47: 66600 | F47: 44400 | G47: 22200
A48: 105470511 | B48: 03-02-M0-0050 | C48: 0302M00050 | D48: MESEN QUESADA MAYRA MARLENE | E48: 0 | F48: 0 | G48: 0 | H48: HACIENDA
A49: 105510478 | B49: 03-02-Q0-0009 | C49: 0302Q00009 | D49: QUIROS CARRANZA MARIA ANGELES | E49: 0 | F49: 0 | G49: 0 | H49: HACIENDA
A50: 105510718 | B50: 03-02-C0-0055 | C50: 0302C00055 | D50: CASTILLO CAMPOS ZAIDA | E50: 3700 | F50: 0 | G50: 3700 | H50: HACIENDA
A51: 105510758 | B51: 03-02-F0-0047 | C51: 0302F00047 | D51: FONSECA RODRIGUEZ MAGDALENA | E51: 17351 | F51: 17351 | G51: 0 | H51: HACIENDA | I51: ADICIONAL
A52: 105570494 | B52: 03-02-G0-0045 | C52: 0302G00045 | D52: GOULD MARCHININI ADELA CRISTINA | E52: 19709 | F52: 19709 | G52: 0 | H52: HACIENDA | I52: ADICIONAL
A53: 105600167 | B53: 03-02-B0-0089 | C53: 0302B00089 | D53: BARRIENTOS SIBAJA LEDA MARIA | E53: -7800 | F53: -30000 | G53: 22200
A54: 105620254 | B54: 03-02-G0-0053 | C54: 0302G00053 | D54: GUEVARA VICENTE CARMEN MARIA | E54: 0 | F54: 0 | G54: 0 | H54: HACIENDA
A55: 105630155 | B55: 03-02-O0-0032 | C55: 0302O00032 | D55: OROZCO ALVAREZ PATRICIA | E55: 0 | F55: 0 | G55: 0 | H55: HACIENDA
A56: 105640130 | B56: 03-02-S0-0041 | C56: 0302S00041 | D56: SEGURA HERNANDEZ SHIRLEY | E56: -3000 | F56: -3000 | G56: 0 | H56: HACIENDA | I56: ARREGLO
A57: 105640829 | B57: 03-02-Z0-0017 | C57: 0302Z00017 | D57: ZUÑIGA VEGA MARCELA | E57: 66600 | F57: 44400 | G57: 22200
A58: 105660138 | B58: 03-02-S0-0094 | C58: 0302S00094 | D58: SALAZAR ARTAVIA JAVIER | E58: -7400 | F58: 22200 | G58: -29600 | H58: HACIENDA | I58: ADICIONAL
A59: 105660170 | B59: 03-02-L0-0015 | C59: 0302L00015 | D59: LOPEZ PADILLA GUISELLE MARIA | E59: -22200 | F59: -22200 | G59: 0 | H59: HACIENDA
A60: 105680127 | B60: 03-02-M0-0121 | C60: 0302M00121 | D60: MUÑOZ ROJAS MARJORIE | E60: 3700 | F60: 3700 | G60: 0 | H60: HACIENDA | I60: ADICIONAL
A61: 105700703 | B61: 03-02-Z0-0005 | C61: 0302Z00005 | D61: ZAMORA ARCE FLOR MARIA | E61: 0 | F61: 0 | G61: 0 | H61: HACIENDA
A62: 105770528 | B62: 03-02-H0-0014 | C62: 0302H00014 | D62: HIDALGO CHINCHILLA MARIA ISABEL | E62: 0 | F62: 0 | G62: 0 | H62: HACIENDA
A63: 105770561 | B63: 03-02-C0-0101 | C63: 0302C00101 | D63: CHINCHILLA JIMENEZ ROXANA | E63: 22200 | F63: 0 | G63: 22200 | H63: UCR
A64: 105780753 | B64: 03-02-A0-0098 | C64: 0302A00098 | D64: AGUERO CASTRO MARIA ERCILIA | E64: 0 | F64: 0 | G64: 0 | H64: HACIENDA
A65: 105810408 | B65: 03-02-S0-0035 | C65: 0302S00035 | D65: SANDI SOLANO ALEXANDER ANTONIO | E65: 12014 | F65: 12014 | G65: 0 | H65: HACIENDA | I65: ADICIONAL
A66: 105810855 | B66: 03-02-G0-0026 | C66: 0302G00026 | D66: GONZALEZ ARROYO ROLANDO | E66: 0 | F66: 0 | G66: 0 | H66: HACIENDA
A67: 105830218 | B67: 03-02-M0-0070 | C67: 0302M00070 | D67: MORA CARRION XENIA | E67: 0 | F67: 0 | G67: 0
A68: 105840212 | B68: 03-02-S0-0038 | C68: 0302S00038 | D68: SANTIAGO FLORES YASMIN GEROGINA | E68: -7400 | F68: -7400 | G68: 0 | H68: HACIENDA
A69: 105840366 | B69: 03-02-C0-0180 | C69: 0302C00180 | D69: CAMACHO BARQUERO GRACE | E69: 10276.5 | F69: 10276.5 | G69: 0 | H69: HACIENDA | I69: ADICIONAL
A70: 105840601 | B70: 03-02-S0-0029 | C70: 0302S00029 | D70: SANCHEZ CERVANTES ROGER GUILLERMO | E70: 0 | F70: -22200 | G70: 22200 | I70: ARREGLO
A71: 105860873 | B71: 03-02-G0-0010 | C71: 0302G00010 | D71: GARBANZO TREJOS MARIANELA | E71: -5341 | F71: -5341 | G71: 0 | H71: HACIENDA
A72: 105870158 | B72: 03-02-Z0-0010 | C72: 0302Z00010 | D72: ZUMBADO VALVERDE GRACE | E72: 0 | F72: 0 | G72: =+E72-F72 -> 0 | H72: HACIENDA
A73: 105910626 | B73: 03-02-E0-0013 | C73: 0302E00013 | D73: ESQUIVEL LOPEZ XINIA | E73: 51000 | F73: 51000 | G73: 0 | H73: HACIENDA
A74: 105920123 | B74: 03-02-N0-0004 | C74: 0302N00004 | D74: NAVARRO HERNANDEZ INGRID | E74: -3000 | F74: -25200 | G74: 22200
A75: 105920999 | B75: 03-02-P0-0001 | C75: 0302P00001 | D75: PANDOLFI LIZANO MARITZA | E75: -3574 | F75: 14447 | G75: -18021 | H75: HACIENDA | I75: ARREGLO
A76: 105940180 | B76: 03-02-U0-0009 | C76: 0302U00009 | D76: UMAÑA ROJAS HANNIA MARIA | E76: 20035 | F76: 30035 | G76: -10000 | H76: HACIENDA | I76: ADICIONAL
A77: 105940267 | B77: 03-02-C0-0045 | C77: 0302C00045 | D77: CARVAJAL RIVERA JUAN ANTONIO | E77: 11100 | F77: 0 | G77: 11100 | H77: HACIENDA | I77: ADICIONAL
A78: 105950429 | B78: 03-02-N0-0015 | C78: 0302N00015 | D78: NOGUERA MORAGA MARIA ESTER | E78: 232140 | F78: 283940 | G78: -51800
A79: 105990060 | B79: 03-02-R0-0081 | C79: 0302R00081 | D79: ROJAS CAMACHO DUNIA | E79: 0 | F79: 0 | G79: 0 | H79: HACIENDA
A80: 105990973 | B80: 03-02-U0-0012 | C80: 0302U00012 | D80: UREÑA SALAZAR VIRYA | E80: 22200 | F80: 0 | G80: 22200 | H80: UCR
A81: 106000472 | B81: 03-02-N0-0002 | C81: 0302N00002 | D81: NARANJO PEREIRA MARIA LUISA | E81: 32200 | F81: 10000 | G81: 22200 | H81: UCR
A82: 106030988 | B82: 03-02-S0-0021 | C82: 0302S00021 | D82: SALAZAR RIVERA YAMILETH | E82: 0 | F82: 0 | G82: 0 | H82: HACIENDA
A83: 106040006 | B83: 03-02-C0-0032 | C83: 0302C00032 | D83: CAMPOS MAY LIZETT | E83: 57042 | F83: 60842 | G83: -3800 | H83: HACIENDA | I83: ADICIONAL
A84: 106040089 | B84: 03-02-M0-0045 | C84: 0302M00045 | D84: MENDOZA DAVILA GEORGINA | E84: 0 | F84: 0 | G84: 0 | H84: HACIENDA
A85: 106040538 | B85: 03-02-R0-0132 | C85: 0302R00132 | D85: RETANA SANCHEZ YAMILETH | E85: 17000 | F85: 32000 | G85: -15000 | H85: HACIENDA | I85: ADICIONAL
A86: 106070336 | B86: 03-02-M0-0207 | C86: 0302M00207 | D86: MORA MONGE GIOCONDA MARIA | E86: 0 | F86: 0 | G86: 0 | H86: HACIENDA
A87: 106090229 | B87: 03-02-E0-0009 | C87: 0302E00009 | D87: ESCOTO MOLINA VIVIANA | E87: 6007 | F87: 6007 | G87: 0 | H87: HACIENDA
A88: 106120663 | B88: 03-02-U0-0006 | C88: 0302U00006 | D88: ULATE FALLAS SONIA | E88: 22200 | F88: 107651 | G88: -85451
A89: 106130389 | B89: 03-02-A0-0056 | C89: 0302A00056 | D89: ARAYA PEREZ BEATRIZ | E89: -800 | F89: 21400 | G89: -22200 | H89: INA
A90: 106160094 | B90: 03-02-D0-0010 | C90: 0302D00010 | D90: DELGADO FIGUEROA JUANITA | E90: 6007 | F90: 6007 | G90: 0 | H90: HACIENDA | I90: ADICIONAL
A91: 106170787 | B91: 03-02-C0-0106 | C91: 0302C00106 | D91: CORDERO SANDI MARIA LILLIANA | E91: 19872 | F91: 24872 | G91: -5000 | H91: INA
A92: 106210135 | B92: 03-02-C0-0095 | C92: 0302C00095 | D92: CHAVES ROJAS GERARDINA | E92: 0 | F92: 0 | G92: 0 | H92: HACIENDA
A93: 106220904 | B93: 03-02-A0-0154 | C93: 0302A00154 | D93: AZOFEIFA CASTRO IRENE | E93: 4000 | F93: -18200 | G93: 22200
A94: 106220979 | B94: 03-02-M0-0027 | C94: 0302M00027 | D94: MASIS GARRO JOSE JOAQUIN | E94: 0
A95: 106260680 | B95: 03-02-G0-0017 | C95: 0302G00017 | D95: GARRO MONTOYA SANDRA ANABELLE | E95: 0 | F95: 0 | G95: =+E95-F95 -> 0 | H95: HACIENDA
A96: 106260879 | B96: 03-02-G0-0013 | C96: 0302G00013 | D96: GARCIA VEGA MARIA GINNA | E96: -8958 | F96: -8958 | G96: 0 | H96: HACIENDA | I96: ARREGLO
A97: 106270617 | B97: 03-02-C0-0228 | C97: 0302C00228 | D97: CHAVARRIA ROJAS VICTOR HUGO | E97: 0 | F97: 0 | G97: 0 | H97: HACIENDA
A98: 106290100 | B98: 03-02-G0-0020 | C98: 0302G00020 | D98: GOMEZ SALGADO MERCEDITAS | E98: 7400 | F98: 0 | G98: 7400
A99: 106300007 | B99: 03-02-C0-0063 | C99: 0302C00063 | D99: CASTRO CAMACHO JULIA MARIA | E99: -7400 | F99: 25900 | G99: -33300 | H99: HACIENDA | I99: ADICIONAL
A100: 106340862 | B100: 03-02-C0-0239 | C100: 0302C00239 | D100: CHACON GRANJA ALBA IRIS | E100: 7400 | F100: -7400 | G100: 14800
A101: 106360668 | B101: 03-02-P0-0033 | C101: 0302P00033 | D101: PARRALES RODRIGUEZ SONIA | E101: 15200 | F101: -7000 | G101: 22200 | H101: UCR
A102: 106360859 | B102: 03-02-C0-0217 | C102: 0302C00217 | D102: CERVANTES RETANA ELVA MARIA | E102: -400 | F102: -400 | G102: 0 | H102: INA
A103: 106370023 | B103: 03-02-M0-0028 | C103: 0302M00028 | D103: MASIS MURCIA BEATRIZ | E103: 0 | F103: 0 | G103: 0 | H103: HACIENDA
A104: 106380561 | B104: 03-02-C0-0037 | C104: 0302C00037 | D104: CARBALLO GONZALEZ MARGOT | E104: 0 | F104: 0 | G104: 0 | H104: HACIENDA
A105: 106430141 | B105: 03-02-Z0-0019 | C105: 0302Z00019 | D105: ZUÑIGA LOPEZ ANA MARIA | E105: 0 | F105: 0 | G105: 0 | H105: HACIENDA
A106: 106440327 | B106: 03-02-R0-0002 | C106: 0302R00002 | D106: RUH MESÉN ANA PATRICIA | E106: -6007 | F106: -6007 | G106: 0 | H106: HACIENDA
A107: 106480747 | B107: 03-02-H0-0017 | C107: 0302H00017 | D107: HIDALGO MONGE LILLIAM | E107: 0 | F107: 0 | G107: 0 | H107: HACIENDA
A108: 106490395 | B108: 03-02-V0-0121 | C108: 0302V00121 | D108: VALVERDE HERRERA VILMA PATRICIA | E108: 7200 | F108: 51800 | G108: -44600 | H108: HACIENDA | I108: ADICIONAL
A109: 106500656 | B109: 03-02-A0-0132 | C109: 0302A00132 | D109: ARAGON DURAN JULIO | E109: 0 | F109: 0 | G109: 0 | H109: HACIENDA
A110: 106510164 | B110: 03-02-C0-0186 | C110: 0302C00186 | D110: CAMPOS FERNANDEZ KAROLYN EUGENIA | E110: 171553 | F110: 149353 | G110: 22200 | I110: ARREGLO
A111: 106520280 | B111: 03-02-G0-0021 | C111: 0302G00021 | D111: GOMEZ VILLAFUERTE ROY EDGARDO | E111: 63100 | F111: 73100 | G111: -10000 | H111: HACIENDA | I111: ADICIONAL
A112: 106560746 | B112: 03-02-Z0-0040 | C112: 0302Z00040 | D112: ZUMBADO BALLESTERO GINA MARIA | E112: 14800 | F112: 0 | G112: 14800
A113: 106610762 | B113: 03-02-B0-0002 | C113: 0302B00002 | D113: BADILLA ARTAVIA YOLANDA | E113: 0 | F113: 0 | G113: 0 | H113: HACIENDA
A114: 106610834 | B114: 03-02-M0-0015 | C114: 0302M00015 | D114: MADRIGAL CASTRO JOSE FABIO | E114: 20035 | F114: 30035 | G114: -10000 | H114: HACIENDA | I114: ADICIONAL
A115: 106630850 | B115: 03-02-H0-0022 | C115: 0302H00022 | D115: HERRERA QUIROS LETICIA | E115: 0 | F115: 0 | G115: 0 | H115: HACIENDA
A116: 106640745 | B116: 03-02-C0-0078 | C116: 0302C00078 | D116: CHACON BARRANTES ANA MARIA | E116: 66600 | F116: 44400 | G116: 22200
A117: 106700819 | B117: 03-02-M0-0034 | C117: 0302M00034 | D117: MELENDEZ CABEZAS VIVIAN | E117: 171619 | F117: 182119 | G117: -10500 | H117: HACIENDA | I117: ARREGLO
A118: 106710104 | B118: 03-02-P0-0020 | C118: 0302P00020 | D118: PORRAS SANCHEZ ANA CECILIA | E118: -7400 | F118: -29600 | G118: 22200
A119: 106730611 | B119: 03-02-J0-0031 | C119: 0302J00031 | D119: JIMENEZ SEGURA FLOR ISABEL | E119: 86400 | F119: 64200 | G119: 22200 | H119: UCR | I119: ARREGLO
A120: 106770626 | B120: 03-02-F0-0006 | C120: 0302F00006 | D120: FALLAS VARGAS MANUEL ARTURO | E120: -7400 | F120: -64600 | G120: 57200
A121: 106790148 | B121: 03-02-M0-0105 | C121: 0302M00105 | D121: MENDEZ CASTRO MARIA ELENA | E121: 14000 | F121: 14000 | G121: 0 | H121: HACIENDA | I121: ADICIONAL
A122: 106800182 | B122: 03-02-S0-0115 | C122: 0302S00115 | D122: SOLIS BONILLA SILVIA YORLENI | E122: 0 | F122: 0 | G122: 0 | H122: HACIENDA
A123: 106840726 | B123: 03-02-C0-0051 | C123: 0302C00051 | D123: CASCANTE MORALES VIRJINIA | E123: 0 | F123: 0 | G123: 0 | H123: HACIENDA
A124: 106850423 | B124: 03-02-B0-0019 | C124: 0302B00019 | D124: BARRIENTOS SOTO SARITA | E124: 10000 | F124: 10000 | G124: 0 | H124: HACIENDA | I124: ADICIONAL
A125: 106850932 | B125: 03-02-V0-0002 | C125: 0302V00002 | D125: VEGA FALLAS BEATRIZ EUGENIA | E125: 0 | F125: 0 | G125: 0 | H125: HACIENDA
A126: 106870938 | B126: 03-02-S0-0125 | C126: 0302S00125 | D126: SERRANO DELGADO LOURDES MARIA | E126: 66600 | F126: 44400 | G126: 22200
A127: 106880374 | B127: 03-02-V0-0021 | C127: 0302V00021 | D127: VARGAS ACUÑA LILLIANA | E127: 51870 | F127: 92070 | G127: -40200 | I127: ARREGLO
A128: 106910043 | B128: 03-02-G0-0005 | C128: 0302G00005 | D128: GODINEZ GUZMAN ELY | E128: 36042 | F128: 46042 | G128: -10000 | H128: HACIENDA | I128: ADICIONAL
A129: 106910070 | B129: 03-02-S0-0074 | C129: 0302S00074 | D129: SOLIS CASTRO GERARDO | E129: -18700 | F129: -18700 | G129: 0 | H129: HACIENDA
A130: 106950232 | B130: 03-02-M0-0129 | C130: 0302M00129 | D130: MORA SALAS SILVIA | E130: 7400 | F130: 0 | G130: 7400
A131: 106950451 | B131: 03-02-M0-0209 | C131: 0302M00209 | D131: MONTES LOPEZ ANA LORENA | E131: 0 | F131: 0 | G131: 0 | H131: HACIENDA
A132: 106960280 | B132: 03-02-A0-0083 | C132: 0302A00083 | D132: AGUILAR TREJOS YANCY AZALEA | E132: 0 | F132: 0 | G132: 0 | H132: HACIENDA
A133: 106960975 | B133: 03-02-L0-0032 | C133: 0302L00032 | D133: LAINEZ MURILLO ANA MARGARITA | E133: 22200 | F133: 0 | G133: 22200
A134: 106980357 | B134: 03-02-Z0-0012 | C134: 0302Z00012 | D134: ZUÑIGA CERVANTES SARAY | E134: 164702 | F134: 142502 | G134: 22200
A135: 107000020 | B135: 03-02-V0-0116 | C135: 0302V00116 | D135: Velásquez Chavarría María del Milagro | E135: 0 | F135: 0 | G135: 0 | H135: HACIENDA
A136: 107000474 | B136: 03-02-V0-0064 | C136: 0302V00064 | D136: VALVERDE CAMPOS YANURY | E136: 0 | F136: 0 | G136: 0 | H136: HACIENDA
A137: 107030323 | B137: 03-02-V0-0028 | C137: 0302V00028 | D137: VARGAS MOLINA INES GABRIELA | E137: 19872 | F137: 24872 | G137: -5000 | H137: INA
A138: 107030333 | B138: 03-02-R0-0032 | C138: 0302R00032 | D138: ROJAS GAMBOA CESAR | E138: 0 | F138: 0 | G138: 0 | H138: HACIENDA
A139: 107070732 | B139: 03-02-A0-0069 | C139: 0302A00069 | D139: ARIAS AGUERO DORIS PATRICIA | E139: 6007 | F139: 6007 | G139: 0 | H139: HACIENDA | I139: ADICIONAL
A140: 107080733 | B140: 03-02-V0-0007 | C140: 0302V00007 | D140: VALENCIANO CANET ANA GRETTEL | E140: 22200 | F140: 0 | G140: 22200 | H140: UCR
A141: 107100475 | B141: 03-02-C0-0044 | C141: 0302C00044 | D141: CARRILLO MASIS MARILÚ | E141: 0 | F141: 0 | G141: 0 | H141: HACIENDA
A142: 107180160 | B142: 03-02-B0-0003 | C142: 0302B00003 | D142: BADILLA MULLNER ANA MARIEL | E142: 83126 | F142: 93126 | G142: -10000
A143: 107200336 | B143: 03-02-C0-0129 | C143: 0302C00129 | D143: CECILIANO KOSLAB JACQUELINE | E143: 0 | F143: 0 | G143: 0
A144: 107230709 | B144: 03-02-M0-0026 | C144: 0302M00026 | D144: MASIS RODRIGUEZ IVONNE PATRICIA | E144: 27728 | F144: 37728 | G144: -10000 | H144: HACIENDA | I144: ADICIONAL
A145: 107250265 | B145: 03-02-O0-0031 | C145: 0302O00031 | D145: ORTEGA ROJAS JUAN | E145: 22200 | F145: 0 | G145: 22200
A146: 107280171 | B146: 03-02-G0-0068 | C146: 0302G00068 | D146: GAMBOA JARA RITA | E146: 0 | F146: 0 | G146: 0 | H146: HACIENDA
A147: 107360975 | B147: 03-02-B0-0100 | C147: 0302B00100 | D147: BADILLA LOPEZ OLIVEY MARIA | E147: 37000 | F147: 14800 | G147: 22200
A148: 107370147 | B148: 03-02-C0-0126 | C148: 0302C00126 | D148: CUELLAR GOMEZ SANDRA | E148: 81000 | F148: 58800 | G148: 22200
A149: 107410170 | B149: 03-02-V0-0001 | C149: 0302V00001 | D149: VILLALOBOS CORDERO ANA LUCIA | E149: 7400 | F149: 7400 | G149: 0
A150: 107420568 | B150: 03-02-B0-0053 | C150: 0302B00053 | D150: BENAVIDES FONSECA MARISOL | E150: 0 | F150: 0 | G150: 0 | H150: HACIENDA
A151: 107430275 | B151: 03-02-O0-0011 | C151: 0302O00011 | D151: ORELLANA GUEVARA CATTY | E151: 0 | F151: 0 | G151: 0
A152: 107430355 | B152: 03-02-U0-0010 | C152: 0302U00010 | D152: UMAÑA CRUZ MARLEN YORLENI | E152: 10035 | F152: 10035 | G152: 0 | H152: HACIENDA | I152: ARREGLO
A153: 107430802 | B153: 03-02-T0-0004 | C153: 0302T00004 | D153: TREJOS GRANADOS OSWALDO | E153: 0 | F153: 0 | G153: 0 | H153: HACIENDA
A154: 107440158 | B154: 03-02-J0-0015 | C154: 0302J00015 | D154: JIMENEZ PADILLA RODRIGO IVAN | E154: 0 | F154: 0 | G154: 0
A155: 107450806 | B155: 03-02-A0-0152 | C155: 0302A00152 | D155: AGUERO CAMPOS MANUEL ENRIQUE | E155: 59200 | F155: 37000 | G155: 22200
A156: 107500376 | B156: 03-02-A0-0048 | C156: 0302A00048 | D156: ARAYA ROJAS MAYELA | E156: 0 | F156: 0 | G156: 0 | H156: HACIENDA
A157: 107610671 | B157: 03-02-B0-0101 | C157: 0302B00101 | D157: BALLESTERO ROJAS JORGE ALBERTO | E157: 0 | F157: 0 | G157: 0 | H157: HACIENDA
A158: 107650095 | B158: 03-02-M0-0163 | C158: 0302M00163 | D158: MIRANDA SANCHEZ MARTA MAYELA | E158: 0 | F158: 0 | G158: 0 | H158: HACIENDA
A159: 107650573 | B159: 03-02-P0-0034 | C159: 0302P00034 | D159: PORRAS DURAN CINTHIA PATRICIA | E159: 0 | F159: 0 | G159: =+E159-F159 -> 0 | H159: HACIENDA
A160: 107690211 | B160: 03-02-M0-0036 | C160: 0302M00036 | D160: MENA BADILLA LUISA ILEANA | E160: 0 | F160: 0 | G160: 0 | H160: HACIENDA
A161: 107700099 | B161: 03-02-A0-0180 | C161: 0302A00180 | D161: ARGUEDAS BRENES GUSTAVO ADOLFO | E161: 0 | F161: 0 | G161: 0
A162: 107740036 | B162: 03-02-O0-0025 | C162: 0302O00025 | D162: OCONITRILLO MONGE YORLENY MARIA | E162: 0 | F162: 0 | G162: 0 | H162: HACIENDA
A163: 107760084 | B163: 03-02-G0-0120 | C163: 0302G00120 | D163: GONZALEZ SANDOVAL GERMAN | E163: 22200 | F163: 37000 | G163: -14800
A164: 107760736 | B164: 03-02-C0-0140 | C164: 0302C00140 | D164: CESPEDES RODRIGUEZ OLGA MARTA | E164: 0 | F164: 0 | G164: 0 | H164: HACIENDA
A165: 107830006 | B165: 03-02-C0-0008 | C165: 0302C00008 | D165: CASTRO GARCIA CYNTHIA | E165: 0 | F165: 0 | G165: 0 | H165: HACIENDA
A166: 107840500 | B166: 03-02-G0-0065 | C166: 0302G00065 | D166: GONZALEZ SAENZ MARIBELL | E166: 6007 | F166: 6007 | G166: 0 | H166: HACIENDA | I166: ADICIONAL
A167: 107850379 | B167: 03-02-M0-0084 | C167: 0302M00084 | D167: MORGAN MORA HELEN | E167: 68657 | F167: 57557 | G167: 11100 | I167: ARREGLO
A168: 107860398 | B168: 03-02-J0-0032 | C168: 0302J00032 | D168: Jiménez Oviedo Gustavo Adolfo | E168: 0 | F168: 0 | G168: 0 | H168: HACIENDA
A169: 107860950 | B169: 03-02-V0-0100 | C169: 0302V00100 | D169: VARGAS SEGURA KATTIA | E169: 6851 | F169: 6851 | G169: 0 | H169: HACIENDA | I169: ADICIONAL
A170: 107880103 | B170: 03-02-G0-0088 | C170: 0302G00088 | D170: GARCIA MUÑOZ MAGDALENA | E170: 117351 | F170: 95151 | G170: 22200
A171: 107880107 | B171: 03-02-B0-0066 | C171: 0302B00066 | D171: BERMUDEZ UGALDE MARIA ANTONIETA | E171: 25153 | F171: 25153 | G171: 0 | H171: HACIENDA | I171: ADICIONAL
A172: 107960330 | B172: 03-02-Q0-0005 | C172: 0302Q00005 | D172: QUESADA OROSZCO MARIELLA | E172: 0 | F172: 0 | G172: 0 | H172: INA
A173: 107980946 | B173: 03-02-G0-0018 | C173: 0302G00018 | D173: GODINEZ FALLAS EUGENIA | E173: 0 | F173: 0 | G173: 0 | H173: HACIENDA
A174: 108000846 | B174: 03-02-S0-0090 | C174: 0302S00090 | D174: SOLIS SOLIS KATTIA | E174: 0 | F174: 0 | G174: 0 | H174: HACIENDA
A175: 108040678 | B175: 03-02-C0-0195 | C175: 0302C00195 | D175: CASTILLO LINARES YERLY | E175: 0 | F175: 0 | G175: 0 | H175: HACIENDA
A176: 108050634 | B176: 03-02-B0-0069 | C176: 0302B00069 | D176: BURKE COTO ALEJNADRA | E176: 0 | F176: 7400 | G176: -7400
A177: 108110079 | B177: 03-02-M0-0162 | C177: 0302M00162 | D177: MORALES MONGE MA. ADELITA (LILLIAN | E177: 14602 | F177: 14302 | G177: 300
A178: 108120390 | B178: 03-02-J0-0019 | C178: 0302J00019 | D178: JIMENEZ BADILLA LUCRECIA | E178: 0 | F178: 0 | G178: 0 | H178: HACIENDA
A179: 108130443 | B179: 03-02-Z0-0035 | C179: 0302Z00035 | D179: ZAMORA ZAMORA SARA LETICIA | E179: -14000 | F179: -14000 | G179: 0 | H179: HACIENDA
A180: 108130567 | B180: 03-02-R0-0056 | C180: 0302R00056 | D180: ROJAS MURILLO GRETTEL MARCELA | E180: 66600 | F180: 44400 | G180: 22200
A181: 108130794 | B181: 03-02-Z0-0026 | C181: 0302Z00026 | D181: ZUÑIGA ROSALES SHERRY | E181: 0 | F181: 0 | G181: 0 | H181: HACIENDA
A182: 108170070 | B182: 03-02-B0-0096 | C182: 0302B00096 | D182: BADILLA CALDERON INGRID VANESSA | E182: 44400 | F182: 22200 | G182: 22200
A183: 108170878 | B183: 03-02-G0-0059 | C183: 0302G00059 | D183: GRANADOS NUÑEZ ZULAY | E183: 0 | F183: 0 | G183: 0 | H183: HACIENDA
A184: 108170888 | B184: 03-02-G0-0016 | C184: 0302G00016 | D184: GARITA OVIEDO MEDELYN | E184: 14028 | F184: 14028 | G184: 0 | H184: HACIENDA | I184: ADICIONAL
A185: 108200849 | B185: 03-02-M0-0167 | C185: 0302M00167 | D185: MORA NAVARRO ANA MARGOTH | E185: 13976.5 | F185: 13976.5 | G185: 0 | H185: HACIENDA | I185: ADICIONAL
A186: 108200880 | B186: 03-02-R0-0019 | C186: 0302R00019 | D186: RODRIGUEZ PALOMO REBECA ROCIO | E186: 4930 | F186: 13930 | G186: -9000 | H186: HACIENDA | I186: ARREGLO
A187: 108220064 | B187: 03-02-C0-0116 | C187: 0302C00116 | D187: COTO VARGAS ADRIANA | E187: 0 | F187: 0 | G187: 0 | H187: INA
A188: 108220114 | B188: 03-02-A0-0038 | C188: 0302A00038 | D188: ALVARADO CORDERO SYLVIA ELENA | E188: 22200 | F188: 0 | G188: 22200 | H188: UCR
A189: 108230002 | B189: 03-02-C0-0215 | C189: 0302C00215 | D189: CASCANTE CHINCHILLA KAROL SUSANA | E189: 109000 | F189: 86800 | G189: 22200
A190: 108230121 | B190: 03-02-R0-0128 | C190: 0302R00128 | D190: Rivas Solano Bernarda | E190: -14800 | F190: 7770 | G190: -22570
A191: 108240421 | B191: 03-02-M0-0030 | C191: 0302M00030 | D191: MASIS VEGA ADELA | E191: 0 | F191: 0 | G191: 0 | H191: HACIENDA
A192: 108320058 | B192: 03-02-B0-0021 | C192: 0302B00021 | D192: BENAVIDES SALAS LORENZO OSVALDO | E192: 54200 | F192: 64200 | G192: -10000 | H192: HACIENDA | I192: ADICIONAL
A193: 108340261 | B193: 03-02-M0-0089 | C193: 0302M00089 | D193: MUÑOZ PORRAS MARIA GABRIELA | E193: 0 | F193: 0 | G193: 0 | H193: HACIENDA
A194: 108360216 | B194: 03-02-C0-0112 | C194: 0302C00112 | D194: CORRALES SALAS RODRIGO | E194: 0 | F194: 0 | G194: 0 | H194: HACIENDA
A195: 108370490 | B195: 03-02-B0-0049 | C195: 0302B00049 | D195: BARQUERO VILLALOBOS MARITZA | E195: 6007 | F195: 6007 | G195: 0 | H195: HACIENDA | I195: ADICIONAL
A196: 108390602 | B196: 03-02-B0-0022 | C196: 0302B00022 | D196: BERMUDEZ RAMIREZ SIANY | E196: 10186 | F196: -12014 | G196: 22200 | H196: UCR
A197: 108410208 | B197: 03-02-M0-0001 | C197: 0302M00001 | D197: MENDEZ SANCHEZ ADRIANA ESTELA | E197: -14966 | F197: -7966 | G197: -7000 | H197: HACIENDA | I197: ARREGLO
A198: 108410305 | B198: 03-02-C0-0033 | C198: 0302C00033 | D198: CAMPOS HERNANDEZ LUIS ROBERTO | E198: 20035 | F198: 20035 | G198: 0 | H198: HACIENDA | I198: ARREGLO
A199: 108410341 | B199: 03-02-R0-0088 | C199: 0302R00088 | D199: REDONDO VALVERDE YERLANIA | E199: 3700 | F199: 3700 | G199: 0 | H199: HACIENDA | I199: ADICIONAL
A200: 108420897 | B200: 03-02-Q0-0020 | C200: 0302Q00020 | D200: QUIROS QUESADA ANA LIGIA | E200: 89277 | F200: 112077 | G200: -22800 | H200: HACIENDA | I200: ARREGLO
A201: 108450284 | B201: 03-02-S0-0138 | C201: 0302S00138 | D201: SOSA CHAVARRIA CAROLINA | E201: 0 | F201: 0 | G201: 0 | H201: HACIENDA
A202: 108460749 | B202: 03-02-P0-0029 | C202: 0302P00029 | D202: PICADO CALDERON LUCRECIA | E202: 0 | F202: 0 | G202: 0 | H202: HACIENDA
... 1532 more rows

Sheet PLANILLA (hidden)
A1: CEDULA | B1: Código | C1: Nombe | D1: Descripción | G1: CEDULA | H1: Código | I1: Nombe | J1: Descripción | L1: CEDULA | M1: Código | N1: Nombe | O1: Descripción | Q1: CEDULA | R1: Código | S1: Nombe | T1: Descripción
A2: 102810097 | B2: 03-02-M0-0013 | C2: MUÑOZ BUSTOS JEANNETTHE | D2: PME-00000003 | G2: 100000000 | L2: 100000000 | Q2: 102810097 | R2: 03-02-M0-0013 | S2: MUÑOZ BUSTOS JEANNETTHE | T2: PTN-00000003
A3: 103950660 | B3: 03-02-E0-0016 | C3: ESTRADA ESPINOZA MARIA ANGELES | D3: PME-00000003 | G3: 104830499 | H3: =+VLOOKUP(G3,deuda,2,0) -> 03-02-A0-0013 | I3: ARGUEDAS NEGRINI IRMA | J3: PUC-00000003 | L3: 104690824 | M3: =+VLOOKUP(L3,deuda,2,0) -> 03-02-V0-0110 | N3: VARGAS LEITON MAYRA | O3: PIN-00000003 | Q3: 103950660 | R3: 03-02-E0-0016 | S3: ESTRADA ESPINOZA MARIA ANGELES | T3: PTN-00000003
A4: 104440254 | B4: 03-02-B0-0014 | C4: BARRANTES ANGULO LUIS MARIANO | D4: PME-00000003 | G4: 105020549 | H4: 03-02-S0-0016 | I4: SALAZAR GUERRERO LEYLA | J4: PUC-00000003 | L4: 106130389 | M4: 03-02-A0-0056 | N4: ARAYA PEREZ BEATRIZ | O4: PIN-00000003 | Q4: 104440254 | R4: 03-02-B0-0014 | S4: BARRANTES ANGULO LUIS MARIANO | T4: PTN-00000003
A5: 104630129 | B5: 03-02-M0-0037 | C5: MENA HERBANDEZ MARITZA | D5: PME-00000003 | G5: 105400370 | H5: 03-02-G0-0082 | I5: GUZMAN HERNANDEZ ANA LUISA | J5: PUC-00000003 | L5: 106170787 | M5: 03-02-C0-0106 | N5: CORDERO SANDI M. LILLIANA | O5: PIN-00000003 | Q5: 105170341 | R5: 03-02-G0-0036 | S5: GONZALEZ JIMENEZ ANA BETTY | T5: PTN-00000003
A6: 104770169 | B6: 03-02-Q0-0024 | C6: QUIROS UMAÑA MARIA PATRICIA | D6: PME-00000003 | G6: 105770561 | H6: 03-02-C0-0101 | I6: CHINCHILLA JIMENEZ ROXANA | J6: PUC-00000003 | L6: 106360859 | M6: 03-02-C0-0217 | N6: CERVANTES RETANA ELBA MARIA | O6: PIN-00000003 | Q6: 105620254 | R6: 03-02-G0-0053 | S6: GUEVARA VICENTE CARMEN MARIA | T6: PTN-00000003
A7: 104840671 | B7: 03-02-A0-0036 | C7: ALVARADO ARIAS MARTA EUGENIA | D7: PME-00000003 | G7: 105990973 | H7: 03-02-U0-0012 | I7: URENA SALAZAR VIRIA | L7: 107030323 | M7: 03-02-V0-0028 | N7: VARGAS MOLINA INES GABRIELA | O7: PIN-00000003 | Q7: 105660138 | S7: Salazar Artavia Javier | T7: PTN-00000003
A8: 104860881 | B8: 03-02-C0-0146 | C8: CUBERO MADRIGAL MARTA EUGENIA | D8: PME-00000003 | G8: 106000472 | H8: 03-02-N0-0002 | I8: NARANJO PEREIRA MAR?A LUISA | J8: PUC-00000003 | L8: 107960330 | M8: 03-02-Q0-0005 | N8: QUESADA OROZCO MARIELLA | O8: PIN-00000003 | Q8: 105810408 | R8: 03-02-S0-0035 | S8: SANDI SOLANO ALEXANDER ANTONIO | T8: PTN-00000003
A9: 104860928 | B9: 03-02-N0-0012 | C9: NUÑEZ MARTINEZ LIZBETH | D9: PME-00000003 | G9: 106360668 | H9: 03-02-P0-0033 | I9: PARRALES RODRIGUEZ SONIA | J9: PUC-00000003 | L9: 108220064 | M9: 03-02-C0-0116 | N9: COTO VARGAS ADRIANA | O9: PIN-00000003 | Q9: 105860873 | R9: 03-02-G0-0010 | S9: GARBANZO TREJOS MARIANELA | T9: PTN-00000003
A10: 104880266 | B10: 03-02-V0-0078 | C10: VEGA CORDERO BEATRIZ FRANCISCA | D10: PME-00000003 | G10: 106730611 | H10: 03-02-J0-0031 | I10: JIMENEZ SEGURA FLOR ISABEL | J10: PUC-00000003 | L10: 108870080 | M10: 03-02-C0-0038 | N10: CARBALLO VARGAS YESENIA | O10: PIN-00000003 | Q10: 105910626 | R10: 03-02-E0-0013 | S10: ESQUIVEL LOPEZ XINIA | T10: PTN-00000003
A11: 104980364 | B11: 03-02-C0-0014 | C11: CABRERA CHAVES NUBIA MARIA | D11: PME-00000003 | G11: 107080733 | H11: 03-02-V0-0007 | I11: VALENCIANO CANET GRETTEL | L11: 109070731 | M11: 03-02-C0-0123 | N11: CUBILLO DIAZ CARLOS ROBERTO | O11: PIN-00000003 | Q11: 106440327 | R11: 03-02-R0-0002 | S11: RUH MESÉN ANA PATRICIA | T11: PTN-00000003
A12: 105000898 | B12: 03-02-B0-0030 | C12: BONILLA UREÑA ZAIDA CORALIA | D12: PME-00000003 | G12: 108220114 | H12: 03-02-A0-0038 | I12: ALVARADO CORDERO SYLVIA ELENA | J12: PUC-00000003 | L12: 109340492 | M12: 03-02-R0-0065 | N12: ROMERO VARGAS MAGALY | O12: PIN-00000003 | Q12: 106500656 | R12: 03-02-A0-0132 | S12: ARAGON DURAN JULIO | T12: PTN-00000003
A13: 105020706 | B13: 03-02-M0-0149 | C13: MARIN MORALES MAYRA MAYELA | D13: PME-00000003 | G13: 108390602 | H13: 03-02-B0-0022 | I13: BERMUDEZ RAMIREZ SIANY | J13: PUC-00000003 | L13: 110470762 | M13: 03-02-C0-0072 | N13: CERDAS BLANCO VIVIANA | O13: PIN-00000003 | Q13: 106610762 | R13: 03-02-B0-0002 | S13: BADILLA ARTAVIA YOLANDA | T13: PTN-00000003
A14: 105170341 | B14: 03-02-G0-0036 | C14: GONZALEZ JIMENEZ ANA BETTY | D14: PME-00000003 | G14: 108920601 | H14: 03-02-J0-0012 | I14: JIMENEZ ESPINOZA ERIKA ISABEL | J14: PUC-00000003 | L14: 110820225 | M14: 03-02-A0-0134 | N14: APU ANGULO DANI JOSE | O14: PIN-00000003 | Q14: 108170888 | R14: 03-02-G0-0016 | S14: GARITA OVIEDO MEDELYN | T14: PTN-00000003
A15: 105190804 | B15: 03-02-V0-0027 | C15: VARGAS NIETO ANA LIDIA | D15: PME-00000003 | G15: 109110177 | H15: 03-02-A0-0007 | I15: AMADOR JARA FLORIBETH | J15: PUC-00000003 | L15: 112130554 | M15: 03-02-A0-0058 | N15: ARCE SOLIS MERILYN | O15: PIN-00000003 | Q15: 108320058 | R15: 03-02-B0-0021 | S15: BENAVIDES SALAS LORENZO OSVALDO | T15: PTN-00000003
A16: 105200164 | B16: 03-02-A0-0014 | C16: ARIAS FONSECA ALEXANDER JAIME | D16: PME-00000003 | G16: 109270751 | H16: 03-02-S0-0034 | I16: SANDI LIZANO RICARDO | J16: PUC-00000003 | L16: 112470216 | M16: 03-02-S0-0067 | N16: SOLIS SANCHEZ NANCY MARIA | O16: PIN-00000003 | Q16: 108860005 | R16: 03-02-M0-0086 | S16: MOYA FAJARDO MARGARITA LUCIA | T16: PTN-00000003
A17: 105230920 | B17: 03-02-M0-0123 | C17: MAZARIEGOS PALACINO SONIA | D17: PME-00000003 | G17: 109390235 | H17: 03-02-M0-0009 | I17: MONTOYA TREJOS ERICK ALBERTO | J17: PUC-00000003 | L17: 112560987 | M17: 03-02-M0-0137 | N17: MASIS JIMENEZ ANA MARIA | O17: PIN-00000003 | Q17: 108900281 | R17: 03-02-P0-0036 | S17: PEÑA FERNANDEZ HANNIA | T17: PTN-00000003
A18: 105260979 | B18: 03-02-R0-0139 | C18: ROMAN MORALES FREDDY ALBERTO | D18: PME-00000003 | G18: 109890598 | H18: 03-02-R0-0039 | I18: RAMIREZ ARCE KATIA | J18: PUC-00000003 | L18: 113180231 | M18: 03-02-M0-0065 | N18: MONTERO SANCHEZ JESSICA ALEJANDRA | O18: PIN-00000003 | Q18: 109030496 | R18: 03-02-A0-0054 | S18: ARAYA MORA GRETTEL MARIA | T18: PTN-00000003
A19: 105270911 | B19: 03-02-S0-0096 | C19: SOLANO MESEN MARIA ISABEL | D19: PME-00000003 | G19: 110210447 | H19: 03-02-S0-0025 | I19: SANCHEZ JIMENEZ MARIA ISABEL | J19: PUC-00000003 | L19: 113780049 | M19: 03-02-B0-0010 | N19: BARQUERO BARBOZA MARIA VANESSA | O19: PIN-00000003 | Q19: 109270034 | R19: 03-02-C0-0020 | S19: CALDERÓN LEÓN SILENY | T19: PTN-00000003
A20: 105290219 | B20: 03-02-U0-0015 | C20: UGALDE MORALES IVANNIA | D20: PME-00000003 | G20: 111040038 | H20: 03-02-R0-0029 | I20: RODRIGUEZ HERRERA ADRIANA | J20: PUC-00000003 | L20: 203360557 | M20: 03-02-G0-0118 | N20: GONZALEZ HERRERA ROSARIO | O20: PIN-00000003 | Q20: 109420550 | R20: 03-02-C0-0052 | S20: CASCANTE CHAVARRIA EVELYIN | T20: PTN-00000003
A21: 105310350 | B21: 03-02-R0-0082 | C21: RODRIGUEZ HERNANDEZ MARIA DEL ROCIO | D21: PME-00000003 | G21: 111350188 | H21: 03-02-M0-0094 | I21: MURILLOAGUILAROSVALDO | J21: PUC-00000003 | L21: 203360724 | M21: 03-02-Z0-0031 | N21: ZAMORA ARIAS BLANCA L. | O21: PIN-00000003 | Q21: 109520520 | R21: 03-02-V0-0048 | S21: VILLALOBOS BRENES ADOLFO | T21: PTN-00000003
A22: 105350115 | B22: 03-02-C0-0169 | C22: CASCANTE FALLAS MARIA DE LOS ANGELES | D22: PME-00000003 | G22: 112940548 | H22: 03-02-G0-0127 | I22: GUEVARA ALFARO PAMELA | J22: PUC-00000003 | L22: 203870512 | M22: 03-02-M0-0189 | N22: MONGE VILLALOBOS HANNIA | O22: PIN-00000003 | Q22: 110170086 | R22: 03-02-B0-0009 | S22: BARBOZA CHACON VERNY | T22: PTN-00000003
A23: 105380248 | B23: 03-02-H0-0048 | C23: HIDALGO VARGAS ALBA IRIS | D23: PME-00000003 | G23: 113030145 | H23: 03-02-C0-0199 | I23: CASCANTE HERRERA RAQUEL | J23: PUC-00000003 | L23: 204000464 | M23: 03-02-A0-0031 | N23: ALFARO FALLAS MARIA TERESA | O23: PIN-00000003 | Q23: 110720302 | R23: 03-02-C0-0165 | S23: CHAVARRIA VARGAS NANCY TATIANA | T23: PTN-00000003
A24: 105410068 | B24: 03-02-A0-0055 | C24: ARAYA JIMENEZ GRETTEL | D24: PME-00000003 | G24: 113220594 | H24: 03-02-C0-0050 | I24: CASCANTE URENA PAOLA | J24: PUC-00000003 | L24: 204830596 | M24: 03-02-L0-0029 | N24: LOPEZ RUIZ MARCOS | O24: PIN-00000003 | Q24: 110750544 | R24: 03-02-P0-0012 | S24: PICADO BARRANTES JESSICA | T24: PTN-00000003
A25: 105470511 | B25: 03-02-M0-0050 | C25: MESEN QUESADA MAYRA MARLENE | D25: PME-00000003 | G25: 204000440 | H25: 03-02-A0-0005 | I25: ALVAREZ ALVAREZ CARLOS ALBERTO | J25: PUC-00000003 | L25: 204880727 | M25: 03-02-R0-0094 | N25: RODRIGUEZ MOYA CARLOS ALBERTO | O25: PIN-00000003 | Q25: 111360835 | R25: 03-02-D0-0009 | S25: DELGADO VARGAS KATTIA | T25: PTN-00000003
A26: 105510478 | B26: 03-02-Q0-0009 | C26: QUIROS CARRANZA MARIA ANGELES | D26: PME-00000003 | G26: 204180606 | H26: 03-02-J0-0030 | I26: JIMENEZ MONTERO ROCIO | J26: PUC-00000003 | L26: 205760697 | M26: 03-02-B0-0027 | N26: BOLANOS QUIROS KRISSIA | O26: PIN-00000003 | Q26: 111410306 | R26: 03-02-R0-0044 | S26: RETANA ZAMORA INGRID FABIOLA | T26: PTN-00000003
A27: 105510718 | B27: 03-02-C0-0055 | C27: CASTILLO CAMPOS ZAIDA | D27: PME-00000003 | G27: 401280628 | H27: 03-02-A0-0027 | I27: ALFARO VARGAS LIZBETH | J27: PUC-00000003 | L27: 205790624 | M27: 03-02-G0-0044 | N27: GONZALEZ JIMENEZ ALEJANDRA | O27: PIN-00000003 | Q27: 111420776 | R27: 03-02-F0-0025 | S27: FONSECA ROJAS SUSANA | T27: PTN-00000003
A28: 105510758 | B28: 03-02-F0-0047 | C28: FONSECA RODRIGUEZ MAGDALENA | D28: PME-00000003 | G28: 401560313 | H28: 03-02-M0-0053 | I28: MIRANDA HERNANDEZ PABLO | J28: PUC-00000003 | L28: 304140949 | M28: 03-02-F0-0030 | N28: FUENTES PACHECO SIMON ANDRES | O28: PIN-00000003 | Q28: 111440822 | R28: 03-02-M0-0099 | S28: MENDEZ SANCHEZ ANA CATALINA | T28: PTN-00000003
A29: 105570494 | B29: 03-02-G0-0045 | C29: GOULD MARCHININI ADELA CRISTINA | D29: PME-00000003 | G29: 401910035 | H29: 03-02-E0-0003 | I29: ESPINOZA SANCHEZ JENNY PATRICI | J29: PUC-00000003 | L29: 401190529 | M29: 03-02-U0-0005 | N29: UGALDE VIQUEZ ANABELLE | O29: PIN-00000003 | Q29: 111500985 | R29: 03-02-C0-0087 | S29: CHAVES SALAZAR ARGERI | T29: PTN-00000003
A30: 105620254 | B30: 03-02-G0-0053 | C30: GUEVARA VICENTE CARMEN MARIA | D30: PME-00000003 | G30: 601050939 | H30: 03-02-G0-0055 | I30: GUTIERREZ CALVO YOLANDA | J30: PUC-00000003 | L30: 401370248 | M30: 03-02-R0-0123 | N30: RUIZ MONTERO JUAN RAMON | O30: PIN-00000003 | Q30: 111510433 | R30: 03-02-H0-0008 | S30: HERNANDEZ ARIAS MAURICIO ALEJANDRO | T30: PTN-00000003
A31: 105630155 | B31: 03-02-O0-0032 | C31: OROZCO ALVAREZ PATRICIA | D31: PME-00000003 | L31: 401540926 | M31: 03-02-S0-0044 | N31: SEGURA GRANADOS LISBETH | O31: PIN-00000003 | Q31: 111770552 | R31: 03-02-R0-0046 | S31: RIVERA LEON LAURA | T31: PTN-00000003
A32: 105640130 | B32: 03-02-S0-0041 | C32: SEGURA HERNANDEZ SHIRLEY | D32: PME-00000003 | L32: 401770357 | M32: 03-02-C0-0103 | N32: CONEJO NOVOA CAROLINA | O32: PIN-00000003 | Q32: 111820386 | R32: 03-02-C0-0024 | S32: CALVO JIMENEZ JEANNETTE | T32: PTN-00000003
A33: 105660138 | B33: 03-02-S0-0094 | C33: SALAZAR ARTAVIA JAVIER | D33: PME-00000003 | L33: 401860040 | M33: 03-02-A0-0061 | N33: ARCE MEJIA ALEJANDRA MARIA | O33: PIN-00000003 | Q33: 112040894 | R33: 03-02-U0-0002 | S33: UGALDE MONGE JESSICA MARIA | T33: PTN-00000003
A34: 105660170 | B34: 03-02-L0-0015 | C34: LOPEZ PADILLA GUISELLE MARIA | D34: PME-00000003 | L34: 503200634 | M34: 03-02-V0-0090 | N34: VILLARREAL RUIZ ANDREA | O34: PIN-00000003 | Q34: 112070262 | R34: 03-02-V0-0058 | S34: VIQUEZ ALPIZAR LAURA GABRIELA | T34: PTN-00000003
A35: 105680127 | B35: 03-02-M0-0121 | C35: MUÑOZ ROJAS MARJORIE | D35: PME-00000003 | L35: 503530896 | M35: 03-02-C0-0092 | N35: CHAVES BUSTOS KATTY DE LOS ANGELES | O35: PIN-00000003 | Q35: 112190301 | R35: 03-02-F0-0049 | S35: FONSECA LOPEZ KATHERINE LISSTH | T35: PTN-00000003
A36: 105700703 | B36: 03-02-Z0-0005 | C36: ZAMORA ARCE FLOR MARIA | D36: PME-00000003 | L36: 600951056 | M36: 03-02-C0-0210 | N36: CASTILLO MARTINEZ PORFIRIO | O36: PIN-00000003 | Q36: 112210867 | R36: 03-02-V0-0016 | S36: VALVERDE MADRIGAL MELISSA LIZETT | T36: PTN-00000003
A37: 105770528 | B37: 03-02-H0-0014 | C37: HIDALGO CHINCHILLA MARIA ISABEL | D37: PME-00000003 | L37: 601260746 | M37: 03-02-V0-0111 | N37: VALVERDE ESPINOZA JOHNNEY | O37: PIN-00000003 | Q37: 113200312 | R37: 03-02-G0-0037 | S37: GONZALEZ BARBOZA CARMEN JAZMIN | T37: PTN-00000003
A38: 105780753 | B38: 03-02-A0-0098 | C38: AGUERO CASTRO MARIA ERCILIA | D38: PME-00000003 | L38: 601700815 | M38: 03-02-C0-0221 | N38: CHAVES VALVERDE LORENA | O38: PIN-00000003 | Q38: 202920581 | R38: 03-02-S0-0087 | S38: SOLANO ARRIETA LETICIA | T38: PTN-00000003
A39: 105810408 | B39: 03-02-S0-0035 | C39: SANDI SOLANO ALEXANDER ANTONIO | D39: PME-00000003 | L39: 601820501 | M39: 03-02-J0-0016 | N39: JIMENEZ RODRIGUEZ MARIA CECILIA | O39: PIN-00000003 | Q39: 203340992 | R39: 03-02-S0-0056 | S39: SOLANO SOTO MANUEL FRANCISCO | T39: PTN-00000003
A40: 105810855 | B40: 03-02-G0-0026 | C40: GONZALEZ ARROYO ROLANDO | D40: PME-00000003 | L40: 603750755 | M40: 03-02-C0-0049 | N40: CASARES CEDENO LUIS GERARDO | O40: PIN-00000003 | Q40: 204400127 | R40: 03-02-C0-0091 | S40: CHAVES SUAREZ MARTIN | T40: PTN-00000003
A41: 105840212 | B41: 03-02-S0-0038 | C41: SANTIAGO FLORES YASMIN GEROGINA | D41: PME-00000003 | L41: 700770819 | M41: 03-02-S0-0111 | N41: SALAZAR SOLANO MARGARITA | O41: PIN-00000003 | Q41: 205000798 | R41: 03-02-P0-0003 | S41: PALMA CRUZ HENAR | T41: PTN-00000003
A42: 105840366 | B42: 03-02-C0-0180 | C42: CAMACHO BARQUERO GRACE | D42: PME-00000003 | Q42: 205240741 | R42: 03-02-R0-0048 | S42: RODRIGUEZ SALAZAR MARILIS | T42: PTN-00000003
A43: 105860873 | B43: 03-02-G0-0010 | C43: GARBANZO TREJOS MARIANELA | D43: PME-00000003 | Q43: 205370650 | R43: 03-02-G0-0014 | S43: GARCIA NAVARRETE PAULA VENESSA | T43: PTN-00000003
A44: 105870158 | B44: 03-02-Z0-0010 | C44: ZUMBADO VALVERDE GRACE | D44: PME-00000003 | Q44: 205390451 | R44: 03-02-B0-0023 | S44: BLANCO ROJAS LUCIA VANESSA | T44: PTN-00000003
A45: 105910626 | B45: 03-02-E0-0013 | C45: ESQUIVEL LOPEZ XINIA | D45: PME-00000003 | Q45: 205570660 | R45: 03-02-A0-0072 | S45: ARROYO BRENES SANTIAGO | T45: PTN-00000003
A46: 105920999 | B46: 03-02-P0-0001 | C46: PANDOLFI LIZANO MARITZA | D46: PME-00000003 | Q46: 205730060 | R46: 03-02-G0-0038 | S46: GONZALEZ GAITAN MELISSA | T46: PTN-00000003
A47: 105940180 | B47: 03-02-U0-0009 | C47: UMAÑA ROJAS HANNIA MARIA | D47: PME-00000003 | Q47: 205740465 | R47: 03-02-E0-0010 | S47: ESPINOZA ROJAS MARIA ANGELES | T47: PTN-00000003
A48: 105940267 | B48: 03-02-C0-0045 | C48: CARVAJAL RIVERA JUAN ANTONIO | D48: PME-00000003 | Q48: 206200163 | S48: Solis Montero Eelyn | T48: PTN-00000003
A49: 105990060 | B49: 03-02-R0-0081 | C49: ROJAS CAMACHO DUNIA | D49: PME-00000003 | Q49: 301570266 | R49: 03-02-B0-0005 | S49: BALDARES CARAZO THELMA | T49: PTN-00000003
A50: 106030988 | B50: 03-02-S0-0021 | C50: SALAZAR RIVERA YAMILETH | D50: PME-00000003 | Q50: 301620067 | R50: 03-02-S0-0072 | S50: STEELE ZUÑIGA GERARDO ALFONSO | T50: PTN-00000003
A51: 106040006 | B51: 03-02-C0-0032 | C51: CAMPOS MAY LIZETT | D51: PME-00000003 | Q51: 303130543 | R51: 03-02-R0-0055 | S51: ROJAS BRENES ANA KATTIA | T51: PTN-00000003
A52: 106040089 | B52: 03-02-M0-0045 | C52: MENDOZA DAVILA GEORGINA | D52: PME-00000003 | Q52: 304090044 | R52: 03-02-M0-0025 | S52: MARTINEZ ROJAS GRETTEL MARIA | T52: PTN-00000003
A53: 106040538 | B53: 03-02-R0-0132 | C53: RETANA SANCHEZ YAMILETH | D53: PME-00000003 | Q53: 401270232 | R53: 03-02-D0-0008 | S53: DELGADO SOLIS JANIO SIVORY | T53: PTN-00000003
A54: 106070336 | B54: 03-02-M0-0207 | C54: MORA MONGE GIOCONDA MARIA | D54: PME-00000003 | Q54: 401800040 | R54: 03-02-C0-0090 | S54: CHAVES CERVANTES EMMANUEL RICARDO | T54: PTN-00000003
A55: 106090229 | B55: 03-02-E0-0009 | C55: ESCOTO MOLINA VIVIANA | D55: PME-00000003 | Q55: 401800568 | R55: 03-02-S0-0026 | S55: SANCHEZ MORA MAUREN ANNETTE | T55: PTN-00000003
A56: 106160094 | B56: 03-02-D0-0010 | C56: DELGADO FIGUEROA JUANITA | D56: PME-00000003 | Q56: 401870870 | S56: Campos Morales Luis Fernando | T56: PTN-00000003
A57: 106210135 | B57: 03-02-C0-0095 | C57: CHAVES ROJAS GERARDINA | D57: PME-00000003 | Q57: 501320759 | R57: 03-02-G0-0052 | S57: GUEVARA VILLEGAS RAFAEL ANTONIO | T57: PTN-00000003
A58: 106260680 | B58: 03-02-G0-0017 | C58: GARRO MONTOYA SANDRA ANABELLE | D58: PME-00000003 | Q58: 601061467 | R58: 03-02-F0-0003 | S58: FRIAS QUESADA CARMEN | T58: PUC-00000003
A59: 106260879 | B59: 03-02-G0-0013 | C59: GARCIA VEGA MARIA GINNA | D59: PME-00000003 | Q59: 601230822 | R59: 03-02-C0-0102 | S59: CHINCHILLA COLE VILMA SUSANA | T59: PTN-00000003
A60: 106270617 | B60: 03-02-C0-0228 | C60: CHAVARRIA ROJAS VICTOR HUGO | D60: PME-00000003 | Q60: 601470350 | R60: 03-02-O0-0007 | S60: OBANDO ARAICA JULIETA | T60: PTN-00000003
A61: 106300007 | B61: 03-02-C0-0063 | C61: CASTRO CAMACHO JULIA MARIA | D61: PME-00000003 | Q61: 602430389 | R61: 03-02-A0-0042 | S61: ALVAREZ ESPINOZA JESUS ALBERTO | T61: PTN-00000003
A62: 106370023 | B62: 03-02-M0-0028 | C62: MASIS MURCIA BEATRIZ | D62: PME-00000003 | Q62: 603060374 | R62: 03-02-V0-0082 | S62: VALLECILLOS SANCHEZ TATIANA CRISTI | T62: PTN-00000003
A63: 106380561 | B63: 03-02-C0-0037 | C63: CARBALLO GONZALEZ MARGOT | D63: PME-00000003 | Q63: 701260079 | R63: 03-02-M0-0083 | S63: MORERA ALVAREZ YENORY | T63: PTN-00000003
A64: 106430141 | B64: 03-02-Z0-0019 | C64: ZUÑIGA LOPEZ ANA MARIA | D64: PME-00000003 | Q64: 701390436 | R64: 03-02-Q0-0013 | S64: QUIROS RODRIGUEZ ALLAN ANTONIO | T64: PTN-00000003
A65: 106440327 | B65: 03-02-R0-0002 | C65: RUH MESÉN ANA PATRICIA | D65: PME-00000003 | Q65: 900590670 | R65: 03-02-S0-0080 | S65: SANCHEZ GARCIA SERGIO ENRIQUE | T65: PTN-00000003
A66: 106480747 | B66: 03-02-H0-0017 | C66: HIDALGO MONGE LILLIAM | D66: PME-00000003 | Q66: 900920486 | S66: Rojas Peñaranda anelly | T66: PTN-00000003
A67: 106490395 | B67: 03-02-V0-0121 | C67: VALVERDE HERRERA VILMA PATRICIA | D67: PME-00000003
A68: 106500656 | B68: 03-02-A0-0132 | C68: ARAGON DURAN JULIO | D68: PME-00000003
A69: 106520280 | B69: 03-02-G0-0021 | C69: GOMEZ VILLAFUERTE ROY EDGARDO | D69: PME-00000003
A70: 106610762 | B70: 03-02-B0-0002 | C70: BADILLA ARTAVIA YOLANDA | D70: PME-00000003
A71: 106610834 | B71: 03-02-M0-0015 | C71: MADRIGAL CASTRO JOSE FABIO | D71: PME-00000003
A72: 106630850 | B72: 03-02-H0-0022 | C72: HERRERA QUIROS LETICIA | D72: PME-00000003
A73: 106700819 | B73: 03-02-M0-0034 | C73: MELENDEZ CABEZAS VIVIAN | D73: PME-00000003
A74: 106790148 | B74: 03-02-M0-0105 | C74: MENDEZ CASTRO MARIA ELENA | D74: PME-00000003
A75: 106800182 | B75: 03-02-S0-0115 | C75: SOLIS BONILLA SILVIA YORLENI | D75: PME-00000003
A76: 106840726 | B76: 03-02-C0-0051 | C76: CASCANTE MORALES VIRJINIA | D76: PME-00000003
A77: 106850423 | B77: 03-02-B0-0019 | C77: BARRIENTOS SOTO SARITA | D77: PME-00000003
A78: 106850932 | B78: 03-02-V0-0002 | C78: VEGA FALLAS BEATRIZ EUGENIA | D78: PME-00000003
A79: 106910043 | B79: 03-02-G0-0005 | C79: GODINEZ GUZMAN ELY | D79: PME-00000003
A80: 106910070 | B80: 03-02-S0-0074 | C80: SOLIS CASTRO GERARDO | D80: PME-00000003
A81: 106950451 | B81: 03-02-M0-0209 | C81: MONTES LOPEZ ANA LORENA | D81: PME-00000003
A82: 106960280 | B82: 03-02-A0-0083 | C82: AGUILAR TREJOS YANCY AZALEA | D82: PME-00000003
A83: 107000020 | B83: 03-02-V0-0116 | C83: Velásquez Chavarría María del Milagro | D83: PME-00000003
A84: 107000474 | B84: 03-02-V0-0064 | C84: VALVERDE CAMPOS YANURY | D84: PME-00000003
A85: 107030333 | B85: 03-02-R0-0032 | C85: ROJAS GAMBOA CESAR | D85: PME-00000003
A86: 107070732 | B86: 03-02-A0-0069 | C86: ARIAS AGUERO DORIS PATRICIA | D86: PME-00000003
A87: 107100475 | B87: 03-02-C0-0044 | C87: CARRILLO MASIS MARILÚ | D87: PME-00000003
A88: 107230709 | B88: 03-02-M0-0026 | C88: MASIS RODRIGUEZ IVONNE PATRICIA | D88: PME-00000003
A89: 107280171 | B89: 03-02-G0-0068 | C89: GAMBOA JARA RITA | D89: PME-00000003
A90: 107420568 | B90: 03-02-B0-0053 | C90: BENAVIDES FONSECA MARISOL | D90: PME-00000003
A91: 107430355 | B91: 03-02-U0-0010 | C91: UMAÑA CRUZ MARLEN YORLENI | D91: PME-00000003
A92: 107430802 | B92: 03-02-T0-0004 | C92: TREJOS GRANADOS OSWALDO | D92: PME-00000003
A93: 107500376 | B93: 03-02-A0-0048 | C93: ARAYA ROJAS MAYELA | D93: PME-00000003
A94: 107610671 | B94: 03-02-B0-0101 | C94: BALLESTERO ROJAS JORGE ALBERTO | D94: PME-00000003
A95: 107650095 | B95: 03-02-M0-0163 | C95: MIRANDA SANCHEZ MARTA MAYELA | D95: PME-00000003
A96: 107650573 | B96: 03-02-P0-0034 | C96: PORRAS DURAN CINTHIA PATRICIA | D96: PME-00000003
A97: 107690211 | B97: 03-02-M0-0036 | C97: MENA BADILLA LUISA ILEANA | D97: PME-00000003
A98: 107740036 | B98: 03-02-O0-0025 | C98: OCONITRILLO MONGE YORLENY MARIA | D98: PME-00000003
A99: 107760736 | B99: 03-02-C0-0140 | C99: CESPEDES RODRIGUEZ OLGA MARTA | D99: PME-00000003
A100: 107830006 | B100: 03-02-C0-0008 | C100: CASTRO GARCIA CYNTHIA | D100: PME-00000003
A101: 107840500 | B101: 03-02-G0-0065 | C101: GONZALEZ SAENZ MARIBELL | D101: PME-00000003
A102: 107860398 | B102: 03-02-J0-0032 | C102: Jiménez Oviedo Gustavo Adolfo | D102: PME-00000003
A103: 107860950 | B103: 03-02-V0-0100 | C103: VARGAS SEGURA KATTIA | D103: PME-00000003
A104: 107880107 | B104: 03-02-B0-0066 | C104: BERMUDEZ UGALDE MARIA ANTONIETA | D104: PME-00000003
A105: 107980946 | B105: 03-02-G0-0018 | C105: GODINEZ FALLAS EUGENIA | D105: PME-00000003
A106: 108000846 | B106: 03-02-S0-0090 | C106: SOLIS SOLIS KATTIA | D106: PME-00000003
A107: 108040678 | B107: 03-02-C0-0195 | C107: CASTILLO LINARES YERLY | D107: PME-00000003
A108: 108120390 | B108: 03-02-J0-0019 | C108: JIMENEZ BADILLA LUCRECIA | D108: PME-00000003
A109: 108130443 | B109: 03-02-Z0-0035 | C109: ZAMORA ZAMORA SARA LETICIA | D109: PME-00000003
A110: 108130794 | B110: 03-02-Z0-0026 | C110: ZUÑIGA ROSALES SHERRY | D110: PME-00000003
A111: 108170878 | B111: 03-02-G0-0059 | C111: GRANADOS NUÑEZ ZULAY | D111: PME-00000003
A112: 108170888 | B112: 03-02-G0-0016 | C112: GARITA OVIEDO MEDELYN | D112: PME-00000003
A113: 108200849 | B113: 03-02-M0-0167 | C113: MORA NAVARRO ANA MARGOTH | D113: PME-00000003
A114: 108200880 | B114: 03-02-R0-0019 | C114: RODRIGUEZ PALOMO REBECA ROCIO | D114: PME-00000003
A115: 108240421 | B115: 03-02-M0-0030 | C115: MASIS VEGA ADELA | D115: PME-00000003
A116: 108320058 | B116: 03-02-B0-0021 | C116: BENAVIDES SALAS LORENZO OSVALDO | D116: PME-00000003
A117: 108340261 | B117: 03-02-M0-0089 | C117: MUÑOZ PORRAS MARIA GABRIELA | D117: PME-00000003
A118: 108360216 | B118: 03-02-C0-0112 | C118: CORRALES SALAS RODRIGO | D118: PME-00000003
A119: 108370490 | B119: 03-02-B0-0049 | C119: BARQUERO VILLALOBOS MARITZA | D119: PME-00000003
A120: 108410208 | B120: 03-02-M0-0001 | C120: MENDEZ SANCHEZ ADRIANA ESTELA | D120: PME-00000003
A121: 108410305 | B121: 03-02-C0-0033 | C121: CAMPOS HERNANDEZ LUIS ROBERTO | D121: PME-00000003
A122: 108410341 | B122: 03-02-R0-0088 | C122: REDONDO VALVERDE YERLANIA | D122: PME-00000003
A123: 108420897 | B123: 03-02-Q0-0020 | C123: QUIROS QUESADA ANA LIGIA | D123: PME-00000003
A124: 108450284 | B124: 03-02-S0-0138 | C124: SOSA CHAVARRIA CAROLINA | D124: PME-00000003
A125: 108460749 | B125: 03-02-P0-0029 | C125: PICADO CALDERON LUCRECIA | D125: PME-00000003
A126: 108550306 | B126: 03-02-V0-0120 | C126: VIQUEZ BOLAÑOS HENRY | D126: PME-00000003
A127: 108600778 | B127: 03-02-R0-0010 | C127: RAMIREZ ARGUELLO JOSE ENRIQUE | D127: PME-00000003
A128: 108610899 | B128: 03-02-M0-0072 | C128: MORA ZUÑIGA ANA LAURA | D128: PME-00000003
A129: 108640206 | B129: 03-02-S0-0005 | C129: SANCHEZ RODRIGUEZ ANA KARINA | D129: PME-00000003
A130: 108660585 | B130: 03-02-L0-0025 | C130: LOPEZ DIAZ KATTIA | D130: PME-00000003
A131: 108660634 | B131: 03-02-C0-0121 | C131: CRUZ VARGAS MARIA ROCIO | D131: PME-00000003
A132: 108680851 | B132: 03-02-E0-0008 | C132: ELIZONDO PERAZA MARCOS | D132: PME-00000003
A133: 108680883 | B133: 03-02-G0-0085 | C133: GAMBOA VALVERDE MARIA ISABEL | D133: PME-00000003
A134: 108690682 | B134: 03-02-M0-0080 | C134: MORAGA VALVERDE MARTA GUISELLE | D134: PME-00000003
A135: 108730836 | B135: 03-02-D0-0002 | C135: DELGADO CASCANTE GUILLERMO ALONSO | D135: PME-00000003
A136: 108860005 | B136: 03-02-M0-0086 | C136: MOYA FAJARDO MARGARITA LUCIA | D136: PME-00000003
A137: 108860549 | B137: 03-02-M0-0006 | C137: MONTERO ORTIZ CRISTIAN RICARDO | D137: PME-00000003
A138: 108890232 | B138: 03-02-N0-0014 | C138: NUÑEZ ALFARO CHRISTIAN | D138: PME-00000003
A139: 108900281 | B139: 03-02-P0-0036 | C139: PEÑA FERNANDEZ HANNIA | D139: PME-00000003
A140: 108930750 | B140: 03-02-V0-0063 | C140: VINDAS FERNANDEZ JUANA PATRICIA | D140: PME-00000003
A141: 109030496 | B141: 03-02-A0-0054 | C141: ARAYA MORA GRETTEL MARIA | D141: PME-00000003
A142: 109050174 | B142: 03-02-C0-0138 | C142: CASCANTE FALLAS ENID | D142: PME-00000003
A143: 109060023 | B143: 03-02-C0-0094 | C143: CHAVES GOMEZ FLORIBETH | D143: PME-00000003
A144: 109080880 | B144: 03-02-Q0-0032 | C144: QUESADA GONZALEZ MARIA CRISTINA | D144: PME-00000003
A145: 109090663 | B145: 03-02-R0-0052 | C145: RODRIGUEZ ROMERO ESTRELLA | D145: PME-00000003
A146: 109110321 | B146: 03-02-H0-0012 | C146: HERRERA QUESADA JONATHAN MAURICIO | D146: PME-00000003
A147: 109120607 | B147: 03-02-E0-0006 | C147: ELIZONDO ASTORGA SINDY | D147: PME-00000003
A148: 109130421 | B148: 03-02-A0-0082 | C148: AZOFEIFA LOPEZ MARIA DEL MILAGRO | D148: PME-00000003
A149: 109180789 | B149: 03-02-C0-0093 | C149: CHAVES MORA LUIS FLARNDEY | D149: PME-00000003
A150: 109210501 | B150: 03-02-P0-0028 | C150: PEREZ TORRES LUIS GUILLERMO | D150: PME-00000003
A151: 109220374 | B151: 03-02-A0-0016 | C151: ABARCA GUZMAN MARICRUZ | D151: PME-00000003
A152: 109220533 | B152: 03-02-A0-0037 | C152: ALVARADO VILLALON MARGARITA | D152: PME-00000003
A153: 109270034 | B153: 03-02-C0-0020 | C153: CALDERÓN LEÓN SILENY | D153: PME-00000003
A154: 109270577 | B154: 03-02-C0-0136 | C154: CHAVARRIA GUDIEL GABRIELA | D154: PME-00000003
A155: 109280973 | B155: 03-02-C0-0086 | C155: CHAVES VIQUEZ ILEANA | D155: PME-00000003
A156: 109300463 | B156: 03-02-G0-0058 | C156: GARRO ARIAS MARTHA YORLENY | D156: PME-00000003
A157: 109320508 | B157: 03-02-D0-0028 | C157: DELGADO ARGUEDAS LUIS RODOLFO | D157: PME-00000003
A158: 109320914 | B158: 03-02-Z0-0024 | C158: ZUÑIGA FERNANDEZ MARIANELA | D158: PME-00000003
A159: 109330861 | B159: 03-02-M0-0046 | C159: MENDOZA CALDERON MAGALY MARCELA | D159: PME-00000003
A160: 109420543 | B160: 03-02-Z0-0033 | C160: Zamora Rubí Carol Patricia | D160: PME-00000003
A161: 109420550 | B161: 03-02-C0-0052 | C161: CASCANTE CHAVARRIA EVELYIN | D161: PME-00000003
A162: 109450625 | B162: 03-02-F0-0042 | C162: FERNANDEZ AGUILAR YESENNIA | D162: PME-00000003
A163: 109460012 | B163: 03-02-M0-0153 | C163: MORALES MORALES BELKYS | D163: PME-00000003
A164: 109460728 | B164: 03-02-B0-0028 | C164: BONICHE GOMEZ AURA VANNESA | D164: PME-00000003
A165: 109500185 | B165: 03-02-S0-0137 | C165: SOLANO CASTILLO SILVIA ELENA | D165: PME-00000003
A166: 109500764 | B166: 03-02-R0-0009 | C166: ROBLES MURILLO JORGE | D166: PME-00000003
A167: 109520427 | B167: 03-02-V0-0038 | C167: VEGA CASTRO MAGALY | D167: PME-00000003
A168: 109520520 | B168: 03-02-V0-0048 | C168: VILLALOBOS BRENES ADOLFO | D168: PME-00000003
A169: 109530507 | B169: 03-02-C0-0227 | C169: CANALES GOMEZ YORLENY MARIA | D169: PME-00000003
A170: 109580328 | B170: 03-02-J0-0004 | C170: JARA VASQUEZ YORLENI | D170: PME-00000003
A171: 109600544 | B171: 03-02-L0-0021 | C171: LEDEZMA CORTES ANDREA MARIELA | D171: PME-00000003
A172: 109650193 | B172: 03-02-M0-0023 | C172: MARTINEZ RETANA YESENIA MARIA | D172: PME-00000003
A173: 109650351 | B173: 03-02-Q0-0021 | C173: QUESADA CALDERON DORA YULIETH | D173: PME-00000003
A174: 109650596 | B174: 03-02-Q0-0012 | C174: QUIROS LIZANO ALICE GABRIELA | D174: PME-00000003
A175: 109660527 | B175: 03-02-F0-0026 | C175: FONSECA HURTADO LUISA GEOVANNA | D175: PME-00000003
A176: 109670649 | B176: 03-02-B0-0082 | C176: BORRAS PORRAS DIANA MARCELA | D176: PME-00000003
A177: 109690361 | B177: 03-02-H0-0037 | C177: HERNANDEZ CHAVARRIA IVANNIA MARIA | D177: PME-00000003
A178: 109730930 | B178: 03-02-R0-0074 | C178: RODRIGUEZ CHINCHILLA CATALINA | D178: PME-00000003
A179: 109740291 | B179: 03-02-V0-0034 | C179: VEGA AGUILAR NATALIA EUGENIA | D179: PME-00000003
A180: 109810175 | B180: 03-02-M0-0059 | C180: MONGE NAVARRO JEIMMMY MILENA | D180: PME-00000003
A181: 109900067 | B181: 03-02-H0-0006 | C181: HERNANDEZ MORA TERESITA | D181: PME-00000003
A182: 109920336 | B182: 03-02-F0-0053 | C182: FERNANDEZ GOMEZ RUTH | D182: PME-00000003
A183: 109950062 | B183: 03-02-C0-0006 | C183: CALDERON GRANADOS ANA MARJORIE | D183: PME-00000003
A184: 109970733 | B184: 03-02-R0-0049 | C184: RODRIGUEZ SANDI PAOLA VANESSA | D184: PME-00000003
A185: 110000261 | B185: 03-02-G0-0097 | C185: GRANADOS PORTUGUEZ OCARIS DEL CARMEN | D185: PME-00000003
A186: 110030012 | B186: 03-02-A0-0030 | C186: ALFARO ROJAS SUSY LIANI | D186: PME-00000003
A187: 110030377 | B187: 03-02-M0-0113 | C187: MEJIAS OVARES ROXANA DEL CARMEN | D187: PME-00000003
A188: 110060766 | B188: 03-02-L0-0013 | C188: LOPEZ BERMUDEZ RUTH | D188: PME-00000003
A189: 110060828 | B189: 03-02-V0-0103 | C189: VALVERDE CAMBRONERO MARIBEL | D189: PME-00000003
A190: 110060895 | B190: 03-02-A0-0079 | C190: ARGUELLO MORA GABRIELA | D190: PME-00000003
A191: 110110250 | B191: 03-02-R0-0040 | C191: ROJAS ESQUIVEL HENRY ALONSO | D191: PME-00000003
A192: 110110459 | B192: 03-02-P0-0002 | C192: PADILLA GAMBOA ALEJANDRA ISABEL | D192: PME-00000003
A193: 110130158 | B193: 03-02-S0-0032 | C193: SANCHEZ CHAVES JOSE ESTEBAN | D193: PME-00000003
A194: 110130581 | B194: 03-02-G0-0069 | C194: GARITA CASTRO SEILIN ELENA | D194: PME-00000003
A195: 110170086 | B195: 03-02-B0-0009 | C195: BARBOZA CHACON VERNY | D195: PME-00000003
A196: 110180418 | B196: 03-02-L0-0011 | C196: LOBO RAMIREZ ANA YANCY | D196: PME-00000003
A197: 110190488 | B197: 03-02-R0-0062 | C197: ROJAS TORRES ISABEL | D197: PME-00000003
A198: 110220236 | B198: 03-02-C0-0080 | C198: CHAVARRIA BRENES LAURA | D198: PME-00000003
A199: 110240871 | B199: 03-02-H0-0010 | C199: HERNANDEZ MORA VIVIAN | D199: PME-00000003
A200: 110280272 | B200: 03-02-R0-0022 | C200: ROBLES CALDERON YENSIE MELANIE | D200: PME-00000003
... 927 more rows

Sheet ARREG PAGO (hidden)
A1: N° | B1: Cédula | C1: Primer apellido | D1: Segundo Apellido | E1: Nombre | F1: Pago inicial | G1: Acuerdo de pago | H1: Fecha de solicitud
A2: 27 | B2: 15000898 | C2: Bonilla | D2: Ureña | E2: Zaida Coralia | F2: 120466,5 // CPO 1630 | G2: Un abono mensual consecutivo de 20,000 en el Banco Nacional/ acogerme al rebajo de planilla a partir de abril 2014
A3: 11 | B3: 104840671 | C3: Alvarado | D3: Arias | E3: Marta Eugenia | F3: 44251 | G3: Rebajo total de la tarjeta n° 377711252085599, y en el momento que presente el pago realizado anteriormente que se me reintegre el dinero
A4: 18 | B4: 105200164 | C4: Arias | D4: Fonseca | E4: Jaime Alexander | F4: 21,000 / recibo CPO 1454 | G4: Aplicar un rebajo adicional de 7400 colones para abonar a la deuda
A5: 10 | B5: 105320052 | C5: Alpízar | D5: Castillo | E5: Sonia | F5: 50,000 no hay recibo | G5: Pagará 28,120 colones por mes hasta cancelar deuda.
A6: 158 | B6: 105640130 | C6: Segura | D6: Hernández | E6: Shirley | G6: REBAJO ADICIONAL MEP
A7: 155 | B7: 105840601 | C7: Sánchez | D7: Cervantes. | E7: Roger | F7: - - - - - | G7: De marzo 2011 al presente 2012. Paga la mitad de lo adeudado en un primer pago en el mes de marzo y un segundo pago total en el momento que reciba el salario inicial del trabajo que pueda obtener en el presente curso lectivo.
A8: 128 | B8: 105920999 | C8: Pandolfi | D8: Lizano | E8: Maritza | F8: 10,000 recibo CPO 0678 | G8: Apenas tenga trabajo pagará la cuenta. REBAJO ADICIONAL MEP
A9: 77 | B9: 106260879 | C9: García | D9: Vega | E9: Gina María | F9: No hace | G9: Debe inscripción + marzo-diciembre 2011. No se realizó el rebajo automático acordado. Se compromete a hacer un abono inicial en setiembre de 5.000 colones y un abono mensual consecutivo de 5.000 colones a partir de octubre. REBAJO ADICIONAL MEP
A10: 36 | B10: 106510164 | C10: Campos | D10: Fernández | E10: Karolyn Eugenia | F10: No hace | G10: Acogerme al rebajo de planilla apartir de la fecha de nombramiento. A partir del primer pago que reciba autorizo el rebajo de una cuota adicional cada mes.
A11: 105 | B11: 106700819 | C11: Melendez | D11: Cabezas | E11: Vivian | G11: REBAJO ADICIONAL MEP
A12: 189 | B12: 106730611 | C12: Jimenez | D12: Segura | E12: Flor Isabel | G12: Hacer rebajo por tractos de 2.000 colones por mes hasta cancelar la deuda | H12: 2014-05-22
A13: 167 | B13: 106880374 | C13: Vargas | D13: Acuña | E13: Lilliana | G13: Rebajo adicional de 3mil colones para cancelar saldo pendiente
A14: 164 | B14: 107430355 | C14: Umaña | D14: Cruz | E14: Marlen | F14: No hace | G14: Rebajar un monto adicional de 5,000 colones adicionales despues del congreso hasta cancelar la deuda
A15: 188 | B15: 107850379 | C15: Morgan | D15: Mora | E15: Hellen | G15: Un solo pago por el monto TOTAL ADEUDADO que en la sede del colegio | H15: 2014-06-12
A16: 143 | B16: 108200880 | C16: Rodríguez | D16: Palomo | E16: Rebeca | G16: REBAJO ADICIONAL MEP
A17: 106 | B17: 108410208 | C17: Méndez | D17: Sánchez | E17: Adriana E. | F17: - - - - - | G17: Debe de marzo 2011 a junio del 2012. Acusa problemas de notificación de deuda. Cancelará 5.000 colones adicionales por quincena. REBAJO ADICIONAL MEP
A18: 37 | B18: 108410305 | C18: Campos | D18: Hernández | E18: Luis | F18: 10,000 CPO 1158 | G18: Un abono mensual consecutivo de 10mil colones
A19: 135 | B19: 108420897 | C19: Quirós | D19: Quesada | E19: Ana Ligia | G19: Me rebajarán 7600 adicionales para abonar a la cuenta pendiente
A20: 179 | B20: 108680883 | C20: Gamboa | D20: Valverde | E20: María Isabel | G20: Un rebajo adicional de 7mil colones hasta cancelar la deuda MEP | H20: 2014-03-31
A21: 2 | B21: 108860005 | C21: Moya | D21: Fajardo | E21: Margarita | G21: REBAJO ADICIONAL INTEGRA
A22: 178 | B22: 108860549 | C22: Montero | D22: Ortiz | E22: Christian | G22: Un abono mensual de 3,700 | H22: 2014-03-31
A23: 171 | B23: 108930750 | C23: Vindas | D23: Fernández | E23: Juana | G23: REBAJO ADICIONAL MEP
A24: 14 | B24: 109030496 | C24: Araya | D24: Mora | E24: Grettel | G24: Rebajo adicional INTEGRA a partir de Febrero 2014
A25: 141 | B25: 109500764 | C25: Robles | D25: Murillo | E25: Jorge | F25: 30332 | G25: Debe de marzo 2011 a junio, 2012. Acusa falta de cobro. Cancelará 10.000 colones adicionales por quincena. Rebajo por planilla UCR a partir de setiembre.
A26: 133 | B26: 109650351 | C26: Quesada | D26: Calderón | E26: Dora Julieth | G26: REBAJO ADICIONAL MEP
A27: 142 | B27: 110280272 | C27: Robles | D27: Calderón | E27: Yensie Melania | F27: No hace | G27: Debe inscripción + marzo-diciembre 2011+enero 2012. Quiere ponerse al día. Realizará un abono mensual consecutivo de 5.000 colones. REBAJO ADICIONAL MEP
A28: 9 | B28: 110360789 | C28: Alfaro | D28: Picado | E28: Alejandro | G28: REBAJO ADICIONAL MEP | H28: 2014-01-08
A29: 76 | B29: 110390988 | C29: Gamboa | D29: Barrantes | E29: Jorge Alberto | F29: 40,000 CPO 0761 | G29: Debe 117,410 a dic.2012. Abonará 13,700 por mes más cuota mensual.
A30: 49 | B30: 110470762 | C30: Cerdas | D30: Blanco | E30: Viviana | G30: Que se me rebaje de la planilla un adicional de 5mil colones para cancelar la deuda
A31: 111 | B31: 110560835 | C31: Mora | D31: Chacon | E31: Alvaro Diego | G31: REBAJO ADICIONAL MEP
A32: 100 | B32: 110610505 | C32: Marín | D32: González | E32: Silvia Patricia | F32: 20.126 | G32: un abono mensual consecutivo de 21,000
A33: 151 | B33: 110750867 | C33: Rosales | D33: Ortega | E33: Kattia | F33: 40,000 recibo BNCR 06027694 | G33: Pagará 30,000 por mes hasta ponerse al día.
A34: 78 | B34: 110970989 | C34: García | D34: Rodríguez | E34: Laura Johana | F34: 10000 | G34: De marzo 2011 a febrero 2012. A partir de marzo ingresa planilla MEP. Deposita 20.000 mensualmente.
A35: 93 | B35: 110970994 | C35: Jiménez | D35: Medina | E35: Carolina | F35: No hace | G35: Debe inscripción + marzo-diciembre 2011 + enero-febrero y abril-junio 2012. Problemas de desempleo. Se compromete a hacer un abono mensual consecutivo de 7.356 colones.
A36: 85 | B36: 110990749 | C36: Hernández | D36: Fernández | E36: Karla | G36: REBAJO ADICIONAL MEP
A37: 57 | B37: 111200703 | C37: Cordero | D37: Salazar | E37: Ericka | G37: REBAJO ADICIONAL MEP
A38: 59 | B38: 111200703 | C38: Cordero | D38: Salazar | E38: Ericka | G38: REBAJO ADICIONAL MEP
A39: 28 | B39: 111210840 | C39: Bonilla | D39: García | E39: Jeimy | G39: REBAJO ADICIONAL MEP
A40: 90 | B40: 111310615 | C40: Hidalgo | D40: Brenes | E40: Angélica | F40: 50,000col | G40: Un abono mensual consecutivo de 7mil colones. Acogerme al rebajo de planilla a partir de Mayo 2013 REBAJO ADICIONAL MEP
A41: 71 | B41: 111370160 | C41: Fallas | D41: Sandí | E41: Denia | F41: 5.276 Col. Se adjunta recibo de pago CPO N° 0575 | G41: Debe de noviembre 2011 al presente (agosto 2012). Había entregado boleta de rebajo por planilla en Pérez Zeledón pero no se la aplicaron. Realizará un abono mensual consecutivo de 5.808 colones. REBAJO ADICIONAL MEP
A42: 98 | B42: 111410962 | C42: Madrigal | D42: Ugalde | E42: Carolina | G42: REBAJO ADICIONAL MEP
A43: 66 | B43: 111460786 | C43: Duarte | D43: Monge | E43: Laura | G43: REBAJO ADICIONAL MEP
A44: 17 | B44: 111480490 | C44: Arguello | D44: González | E44: Abraham Valentín | F44: 62017 Se adjunta recibo BCR N° 52117466 | G44: Debe de marzo 2011 al presente (agosto 2012) más la cuota de inscripción. Presentaba dificultad para hacer los pagos por falta de trabajo. Ofrece un abono mensual consecutivo de 31.004 col
A45: 53 | B45: 111500985 | C45: Chaves | D45: Salazar | E45: Algeri | F45: 10000 | G45: Debe de marzo 2011 a junio del 2012. Acusa problemas con nombramiento. Cancelará una cuota adicional cada mes en el BCR.
A46: 89 | B46: 111560352 | C46: Herrera | D46: Garro | E46: Arellys Tatiana | F46: 7,000col. Recibo CPO 0974 | G46: A partir del primer pago que reciba al iniciar a trabajar, depositaré en la cuenta del Colegio 5000 colones, una cuota adicional cada mes.
A47: 131 | B47: 111600751 | C47: Pineda | D47: Castro | E47: Rebeca | F47: 25,000col. CPO 1215 | G47: A partir del primer pago que reciba al iniciar a trabajar, depositaré en la cuenta del colegio una cuota adicional al mes
A48: 154 | B48: 111760590 | C48: Salas | D48: Céspedes | E48: Teresa | F48: No hace | G48: Debe de enero a junio 2012. No tenía tiempo para ir a cancelar al banco. Va a realizar un solo pago por el monto adeudado en el Banco Nacional.
A49: 114 | B49: 111870585 | C49: Muñoz | D49: Badilla | E49: Ileana | F49: No hace | G49: Debe abril a agosto 2011. Argumenta que no le hicieron rebajos anteriores. Pide que le dividan la deuda en cuatro tractos y que se la rebajen de planilla.
A50: 80 | B50: 111920020 | C50: González | D50: Varela | E50: Priscilla Maria | F50: 10,000 CPO 0759 | G50: rebajar 3mil colones adicionales hasta cancelar la deuda.
A51: 153 | B51: 111950783 | C51: Ruiz | D51: Carvajal | E51: Susan A. | F51: 20000 | G51: Un abono mensual consecutivo de 20.000 colones para abonar a la deuda
A52: 83 | B52: 112000453 | C52: Grillo | D52: Espinoza | E52: Hilda | G52: REBAJO ADICIONAL MEP
A53: 183 | B53: 112010052 | C53: Mora | D53: Salazar | E53: Fanny | F53: 70,000 cpo1730 | G53: Un rebajo mensual consecutivo de 17,781 por los siguientes 4 meses | H53: 2014-06-23
A54: 67 | B54: 112020832 | C54: Durán | D54: Chacón | E54: Carolina | G54: REBAJO ADICIONAL MEP
A55: 166 | B55: 112040114 | C55: Valverde | D55: Quirós | E55: Magaly | G55: Rebajo adicional por seis meses de 6007 a partir de enero 2014
A56: 148 | B56: 112130905 | C56: Rojas | D56: Umaña | E56: Lidia Francela | F56: 10000 Comp.BCR 52024093 | G56: Debe de marzo 2011 a agosto 2012. Acusa dificultad económica. Cancelará 10.000 colones adicionales por mes. Adjunta boleta para rebajo por planilla del MEP a partir de setiembre.
A57: 115 | B57: 112160740 | C57: Muñoz | D57: Marín | E57: Diany | F57: 15000 | G57: Un abono mensual consecutivo de 7600 para abonar a la deuda | H57: 2014-01-28
A58: 5 | B58: 112210867 | C58: Valverde | D58: Madrigal | E58: Melissa | G58: REBAJO ADICIONAL INTEGRA
A59: 25 | B59: 112260880 | C59: Blanco | D59: Murillo | E59: Sylvia | F59: voy hacer transferencia bancaria | G59: un abono mensual consecutivo en el BCR de 20,000 colones para abonar a la deuda
A60: 6 | B60: 112290130 | C60: Abarca | D60: Ortiz | E60: Eduardo | F60: 5,000 / CPO 1482 | G60: Rebajo adicional de 7mil colones para cancelar deuda
A61: 97 | B61: 112290945 | C61: López | D61: Carvajal | E61: Jessica | G61: REBAJO ADICIONAL MEP
A62: 38 | B62: 112310868 | C62: Campos | D62: García | E62: Jazmín | F62: 50000 | G62: A partir del primer pago que reciba al iniciar a trabajar, me presentaré al colegio a cancelar una cuota adicional cada mes
A63: 72 | B63: 112330252 | C63: Fernández | D63: Cerdas | E63: Jennifer | F63: 50,000 recibo BNCR 12730645 | G63: Pagará 20,000 colones por mes hasta saldar deuda.
A64: 107 | B64: 112400515 | C64: Méndez | D64: Castro | E64: Jessica | G64: REBAJO ADICIONAL MEP solicito se me rebaje un adicional de 5,000 colones por mes
A65: 136 | B65: 112430037 | C65: Ramírez | D65: Hidalgo | E65: Geanina | G65: REBAJO ADICIONAL MEP
A66: 95 | B66: 112440103 | C66: López | D66: Rojas | E66: Cynthia | G66: REBAJO ADICIONAL MEP
A67: 101 | B67: 112450632 | C67: Marroquín | D67: Méndez | E67: Melissa | F67: No hace | G67: Debe inscripción + junio-diciembre 2011+enero-agosto 2012. No cuenta con tanto dinero para cancelar en un solo tracto y no se encuentra ejerciendo la profesión. Realizará abono inicial de 10.000 colones y uno mensual consecutivo de 6.851 colones.
A68: 3 | B68: 112500449 | C68: Rodríguez | D68: Solis | E68: Adriana | G68: REBAJO ADICIONAL INTEGRA
A69: 24 | B69: 112500948 | C69: Benavides | D69: Campos | E69: Yorleny | F69: 60,000 / Recibo CPO 1472 | G69: Rebajar en durante 2 meses 50,000 colones para cancelar la deuda
A70: 195 | B70: 112580969 | C70: Fernández | D70: González | E70: Priscilla | F70: 74850 | G70: un abono mensual consecutivo de 19875 para abonar a la deuda actual | H70: 2014-10-07
A71: 63 | B71: 112600532 | C71: Delgado | D71: Cabana | E71: Zeidy Virginia | F71: Abono 90,000 CPO 0767. | G71: Debe 151,438 a dic. 2012, Pagará 10,000 por mes.
A72: 43 | B72: 112670629 | C72: Castillo | D72: Leitón | E72: Fabio | G72: REBAJO ADICIONAL MEP
A73: 20 | B73: 112760919 | C73: Badilla | D73: Venegas | E73: Fanny | F73: 40000 | G73: un abono mensual consecutivo de 19965
A74: 168 | B74: 112770244 | C74: Vega | D74: García | E74: Johanna | G74: REBAJO ADICIONAL MEP
A75: 117 | B75: 112780825 | C75: Murillo | D75: Zumbado | E75: María Rebeca | G75: REBAJO ADICIONAL MEP
A76: 32 | B76: 112790718 | C76: Calderón | D76: Rodríguez | E76: Monica | G76: REBAJO ADICIONAL MEP
A77: 33 | B77: 112840862 | C77: Calderón | D77: Blanco | E77: Josué | F77: No hace | G77: Apenas tenga trabajo pagará la cuenta.
A78: 173 | B78: 112850432 | C78: Zamora | D78: González | E78: Elieth Francine | F78: No hace | G78: Debe de marzo 2011 al presente. Dificultades para pagar por falta de trabajo. Apenas cuente con nombramiento llenará la fórmula de rebajo por planilla.
A79: 12 | B79: 112920147 | C79: Álvarez | D79: Barrantes | E79: Marco Vinicio | F79: 7,000 recibo CPO 1377 | G79: Un abono mensual consecutivo de 14mil colones. En cuanto pueda realizaré la cancelación total de la deuda
A80: 73 | B80: 112960470 | C80: Fernández | D80: González | E80: María Fernanda | F80: 30.375 | G80: Diciembre 2011 a Diciembre 2012. Abona 30,375. Pagará pór mes 28,500,
A81: 175 | B81: 113010962 | C81: Zuñiga | D81: Barrantes | E81: Maria Isabel | F81: 50,000/ BN 15052473 | G81: Un abono mensual de 25,000 para abonar a la deuda
A82: 40 | B82: 113110922 | C82: Carvajal | D82: Azofeifa | E82: Jeremy | F82: 20,000 recibo CPO 0855 | G82: Pagará 20,000 colones por mes hasta saldar deuda.
A83: 74 | B83: 113120093 | C83: Fernández | D83: Calderón | E83: Susan Ariet | G83: REBAJO ADICIONAL MEP
A84: 69 | B84: 113160229 | C84: Elizondo | D84: Carmona | E84: Kathia | G84: REBAJO ADICIONAL MEP
A85: 193 | B85: 113170610 | C85: Soto | D85: Corrales | E85: Rita | F85: 3700 | G85: un abono mensual consecutivo de 3700 para abonar a las mensualidades | H85: 2014-09-17
A86: 163 | B86: 113170807 | C86: Ulloa | D86: Gómez | E86: Yuliana | F86: 10,000 recibo CPO 0960 | G86: Pagará 5,000 colones por mes hasta saldar la deuda.
A87: 165 | B87: 113170904 | C87: Umaña | D87: Esquivel | E87: Jessica | F87: - - - - - | G87: El arreglo de pago lo realizaré entre los meses de noviembre y diciembre: de los tres meses de agosto, setiembre y octubre que son 18.021 colones y el mes de abril que son 6.007 colones, lo cual suma un total de 24.028 colones, ya que pagaré en el mes de noviembre 12.014 colones mas la cuota mensual (del mes de noviembre) y en el otro mes de diciembre 12.014 colones más la cuota mensual (mes de diciembre) en la cuenta bancaria del Banco Nacional.
A88: 161 | B88: 113180153 | C88: Tinoco | D88: Torres | E88: Sofía | F88: No hace | G88: Debe de marzo 2011 al presente. Pagará 13,702 por mes.
A89: 172 | B89: 113250881 | C89: Vindas | D89: Orozco | E89: Ana Gabriela | F89: No hace | G89: Rebajar un monto adicional de 7,000 colones adicionales hasta cancelar la deuda
A90: 162 | B90: 113280443 | C90: Torres | D90: Pérez | E90: Eymi Alejandra | F90: 63,476 / CPO-1975 | G90: A partir del primer pago que reciba al iniciar a trabajar depositaré una cuota adicional cada mes | H90: 2014-07-21
A91: 184 | B91: 113350160 | C91: Lopez | D91: Rojas | E91: Andrea | F91: 28600 | G91: acogerme al rebajo de planilla a partir de junio 2014 | H91: 2014-05-06
A92: 50 | B92: 113360864 | C92: Chavarría | D92: Rojas | E92: Adela Isabel | F92: 25,000 colones | G92: A partir del primer pago que reciba al iniciar a trabajar, cancelaré 1 cuota adicional cada mes mediante deposito en el banco nacional. REBAJO ADICIONAL MEP
A93: 52 | B93: 113360864 | C93: CHAVARRIA ROJAS ADELA ISABEL | G93: REBAJO ADICIONAL MEP
A94: 21 | B94: 113420205 | C94: Barrantes | D94: Fallas | E94: Solimar | F94: - - - - - | G94: A partir del primer pago que reciba al iniciar a trabajar, me presentaré al colegio a cancelar una cuota adicional cada mes
A95: 44 | B95: 113460187 | C95: Castillo | D95: Gutiérrez | E95: Yendry | F95: 30.000 Col. Se adjunta recibo de pago CPO N° 0635 | G95: Debe inscripción + marzo-diciembre 2011+enero-agosto 2012. Piensa laborar en el MEP y le piden certificación de colegiatura. Realizará una cuota adicional por mes cuando inicie a trabajar.
A96: 134 | B96: 113480066 | C96: Quesada | D96: Chacón | E96: Wendy Cristina | G96: REBAJO ADICIONAL MEP
A97: 108 | B97: 113480347 | C97: Méndez | D97: Méndez | E97: Nathalie | F97: 7,000col. Doc. 5701985 | G97: Un abono mensual consecutivo de 3,500 colones
A98: 84 | B98: 113500957 | C98: Guerrero | D98: Valverde | E98: Maria Fernanda | F98: 10,000col. Doc. 17461441 | G98: Un abono mensual consecutivo de 3.000 colones para abonar a la deuda actual. (7,000 + 3,000) A partir del primer pago que reciba al iniciar a trabajar cancelare el total adeudado que aun quede por pagar en las instalaciones del Colegio
A99: 149 | B99: 113580684 | C99: Rojas | D99: Torres | E99: Natasha | F99: 7,000 recibo CPO 1400 | G99: Un abono mensual consecutivo de 10,000 colones para abonar a la deuda actual.
A100: 157 | B100: 113640254 | C100: Sancho | D100: Mora | E100: Francis Mariana | F100: 10,000 recibo CPO 0962 | G100: Pagará 20,000 colones por mes hasta saldar deuda.
A101: 182 | B101: 113670575 | C101: Blanco | D101: Cruz | E101: Lady | G101: Un abono mensual consecutivo de 10 mil colones en el Banco Nacional | H101: 2014-05-21
A102: 196 | B102: 113680692 | C102: Espinoza | D102: Herrera | E102: Sussan | F102: 8000 | G102: un abono mensual consecutivo de 7400 | H102: 2014-11-11
A103: 122 | B103: 113700740 | C103: Núñez | D103: Valverde | E103: Lincey | F103: 20,000 recibo CPO 0961 | G103: Pagará 8,000 colones por mes hasta saldar la deuda,
A104: 103 | B104: 113740744 | C104: Martinez | D104: Castillo | E104: Michelle | G104: REBAJO ADICIONAL MEP
A105: 138 | B105: 113780299 | C105: Reyes | D105: Niño | E105: Katherine | F105: 10,000col.Recibo CPO-0999 | G105: Un abono mensual consecutivo de 7,000 colones para abonar a la deuda
A106: 144 | B106: 113780442 | C106: Rodríguez | D106: Hidalgo | E106: Abraham | G106: A partir del primer pago que reciba al iniciar a trabajar, depositaré en la cuenta del colegio 1 cuota adicional cada mes
A107: 116 | B107: 113780530 | C107: Muñoz | D107: Mena | E107: Laura | F107: No hace | G107: Debe junio-diciembre 2011 + enero-agosto 2012. Problemas de desempleo. Se compromete a pagar una cuota mensual adicional apenas inicie a trabajar.
A108: 132 | B108: 113780798 | C108: Pupo | D108: Galán | E108: Laura | F108: - - - - - | G108: Debe de Diciembre 2012 hasta Julio 2013. Rebajo de planilla a partir de Agosto, rebajar 2 cuotas por mes. (la del mes correspondiente mas una para abonar a la deuda)
A109: 47 | B109: 113860793 | C109: Castro | D109: Badilla | E109: Lesli Vanesa | F109: No hace | G109: Apenas tenga trabajo pagará la cuenta.
A110: 99 | B110: 113950517 | C110: Marin | D110: Castillo | E110: Kemberly | F110: 7,000 / CPO 1488 | G110: A partir del primer pago que reciba al iniciar a trabajar, me presentaré al colegio a cancelar una cuota adicional cada mes
A111: 7 | B111: 203140031 | C111: Acevedo | D111: Alvarez | E111: Francisca | G111: REBAJO ADICIONAL MEP
A112: 119 | B112: 203230148 | C112: Naranjo | D112: Calvo | E112: Nury | F112: No hace | G112: Pagará 7,000 colones por mes hasta cancelar deuda. REBAJO ADICIONAL MEP
A113: 190 | B113: 203270838 | C113: Corella | D113: Quesada | E113: Olga | G113: Un rebajo adicional de 15.280 a partir de julio 2014 | H113: 2014-06-09
A114: 4 | B114: 203340992 | C114: Solano | D114: Soto | E114: Manuel | G114: REBAJO ADICIONAL INTEGRA
A115: 54 | B115: 204400127 | C115: Chaves | D115: Suarez | E115: Martín | G115: Que se me rebaje el monto pendiente de la planilla
A116: 145 | B116: 204480835 | C116: Rodríguez | D116: López | E116: Rebeca | G116: REBAJO ADICIONAL MEP
A117: 56 | B117: 204810934 | C117: Conejo | D117: Montero | E117: Shirley >M. | F117: No hace | G117: Pagará 3,000 colones mensual hasta saldar la deuda. REBAJO ADICIONAL MEP
A118: 96 | B118: 204830596 | C118: López | D118: Ruíz | E118: Marco | F118: --- | G118: rebajar 3mil colones adicionales por 23meses hasta cancelar la deuda.
A119: 8 | B119: 205000805 | C119: Aguilar | D119: Mondragón | E119: Emid | F119: 5.000 Col. Se adjunta recibo de pago CPO N° 0643 | G119: Debe de abril-agosto 2011 + enero y febrero 2012. Falta de nombramiento esos meses. Se compromete a hacer un abono inicial de 10.000 colones y uno mensual consecutivo de 10.000 colones.
A120: 92 | B120: 205020067 | C120: Hurtado | D120: Méndez | E120: Rosibel | F120: 30,000 no hay recibo | G120: Pagará 2,000 colones por mes hasta saldar deuda.
A121: 79 | B121: 205370650 | C121: García | D121: Navarrete | E121: Paula Vanessa | G121: Rebajo adicional INTEGRA a partir de Febrero 2014
A122: 113 | B122: 205680270 | C122: Moreira | D122: González | E122: Maricela | F122: Abono inical de 4,000 colones BCR | G122: Un abono mensual de 2mil colones para abonar a la deuda actual
A123: 91 | B123: 205710244 | C123: Hidalgo | D123: Valenciano | E123: Lisbeth | F123: - - - - - | G123: Que se me rebaje adicional a la cuota mensual establecida la suma de 20,000colones para ponerme al día REBAJO ADICIONAL MEP | H123: 2014-02-04
A124: 177 | B124: 205710505 | C124: Valverde | D124: Varela | E124: Marianela | F124: 40mil | G124: Un abono mensual de 5mil colones , por favor rebajar dicho monto de la planilla | H124: 2014-03-24
A125: 22 | B125: 205750255 | C125: Barrantes | D125: Estrada | E125: Sandra | G125: REBAJO ADICIONAL MEP
A126: 26 | B126: 205760697 | C126: Bolaños | D126: Quirós | E126: Krissia | F126: 5000 | G126: Un abono mensual consecutivo de 5mil colones
A127: 129 | B127: 205960635 | C127: Pérez | D127: Zúñiga | E127: Laura | F127: 30000 | G127: Debe de marzo 2011 al presente (agosto 2012). Presentaba dificultad para hacer los pagos por falta de trabajo. Ofrece un abono mensual consecutivo de 30.000 col
A128: 152 | B128: 206070432 | C128: Rubi | D128: Rubi | E128: Dannis | G128: REBAJO ADICIONAL MEP
A129: 70 | B129: 206170796 | C129: Elizondo | D129: Sánchez | E129: Jacqueline | F129: No hace | G129: Pagará 5,000 por quincena hasta saldar deuda.
A130: 81 | B130: 206360974 | C130: González | D130: Ortega | E130: María | F130: 20,000 recibo CPO 1136 | G130: Rebajar 10mil colones por mes hasta cancelar la deuda | H130: 2014-06-13
A131: 41 | B131: 206370486 | C131: Carvajal | D131: Vega | E131: Carmen | G131: Un rebajo adicional de 7mil colones por 5 meses hasta cancelar la deuda MEP
A132: 29 | B132: 206380287 | C132: Brenes | D132: Cabezas | E132: Joseline | F132: - - - - - | G132: Colegiatura en Asamblea de Instauración: C10.000 - Marzo 2011 a enero 2012: C66077. febrero 2012: C6851 - Total: C82928. Un abono mensual consecutivo de 10.000 colones hasta ponerse al día en su estado de cuenta
A133: 86 | B133: 206430180 | C133: Hernández | D133: Morera | E133: Ana Lizeth | G133: A partir del primer pago que reciba al iniciar a trabajar, me presentaré al colegio a cancelar una cuota adicional cada mes
A134: 125 | B134: 206450814 | C134: Ortiz | D134: Porras | E134: María DE LOS Angeles | F134: No hace | G134: Debe inscripción + marzo-diciembre 2011+enero-agosto 2012. No cuenta con tanto dinero para cancelar en un solo tracto. Realizará abono mensual consecutivo de 5.000 colones.
A135: 48 | B135: 206480470 | C135: Castro | D135: Mesen | E135: Melissa | G135: REBAJO ADICIONAL MEP
A136: 64 | B136: 206600872 | C136: Díaz | D136: Murillo | E136: Karla Emilia | F136: 10,000 recibo CPO 0784 | G136: Pagará 5,000 por mes más mensualidad. | H136: 2014-03-05
A137: 139 | B137: 206820402 | C137: Rivera | D137: Rodríguez | E137: Jose Antonio | F137: 14400 // CPO 1648 | G137: Un abono mensual consecutivo de 7000 para abonar a la deuda
A138: 109 | B138: 206870725 | C138: Méndez | D138: Sirias | E138: Johanna | G138: REBAJO ADICIONAL MEP
A139: 35 | B139: 302850636 | C139: Calvo | D139: Valverde | E139: Guiselle | F139: No hace | G139: Un abono mensual consecutivo de 7,000 colones para abonar a la deuda. Acogerme al rebajo de planilla apartir de setiembre. Por favor aplicar el rebajo de este adicional. MEP
A140: 87 | B140: 303310792 | C140: Hernández | D140: Marín | E140: Alejandra | F140: 25000 | G140: Acogerme al rebajo de planilla a partir de Noviembre con un rebajo adicional de 6,851. REBAJO ADICIONAL MEP
A141: 180 | B141: 303550800 | C141: Solano | D141: Villalobos | E141: Yesenia | G141: Un rebajo adicional de 8500 durante 6 meses para cancelar la deuda | H141: 2014-05-12
A142: 159 | B142: 303620081 | C142: Solano | D142: Gamboa | E142: Alejandra | G142: REBAJO ADICIONAL MEP
A143: 174 | B143: 303680096 | C143: Zeledón | D143: Toruño | E143: Elena Damaris | F143: 20,000 recibo CPO 0792 | G143: En lapso de tres meses cancelará la deuda. REBAJO ADICIONAL MEP
A144: 124 | B144: 303990686 | C144: Obando | D144: Calderón | E144: Jimmy J. | F144: - - - - | G144: Debe inscripción y de marzo 2011 al presente. Realizaría un abono mensual consecutivo de 10.000 colones para abonar a la deuda actual. REBAJO ADICIONAL MEP
A145: 55 | B145: 304100584 | C145: Chaves | D145: Carballo | E145: Lucía | F145: - - - - - | G145: De marzo 2011 al presente 2012. A partir del primer pago que reciba al iniciar a trabajar, me presentaré a cancelar en las instalaciones del Colegio, una cuota adicional cada mes. | H145: 2014-01-31
A146: 45 | B146: 304120643 | C146: Castillo | D146: Picado | E146: Paulina | F146: No hace | G146: Debe de febrero a setiembre 2012. Problemas de desempleo. Se compromete a hacer un abono inicial de 10.000 colones y apenas empiece a laborar solicita rebajo por planilla para que le rebajen también lo que adeuda consecutivamente.
A147: 30 | B147: 304140770 | C147: Brenes | D147: Carrillo | E147: Natalia Paola | F147: 15000 Rec. CPO 0562 | G147: Debe de febrero a agosto del 2011. No se la había hecho ese rebajo. Va a hacer un abono mensual consecutivo de 10.000 colones.
A148: 46 | B148: 304220231 | C148: Castillo | D148: Solano | E148: Victoria de los Angeles | F148: 10000 | G148: Debe de diciembre 2011 al presente. Pagará en abril 10.567, mayo: 9851, junio: 9851, julio: 9851, agosto: 9851.
A149: 137 | B149: 304220809 | C149: Ramírez | D149: Castro | E149: Ligia | G149: REBAJO ADICIONAL MEP
A150: 94 | B150: 304270724 | C150: Leiva | D150: Roldán | E150: Alejandra | F150: 5,000 recibo CPO 0721 | G150: Debía 144,587 a nov.2012, Pagará en BNCR 5,000 por mes.
A151: 126 | B151: 304270892 | C151: Ortiz | D151: Vargas | E151: Melissa Elena | F151: 10,000 recibo CPO 1232 | G151: Debe inscripción y de marzo 2011 al presente. Realizaría un abono mensual consecutivo de 5.000 colones para abonar a la deuda actual.
A152: 58 | B152: 304280115 | C152: Cordero | D152: Brenes | E152: Allan M. | F152: - - - - - | G152: Debe de agosto 2011 a enero 2012. Pagaría 18.021 en la primera quincena de febrero y el mismo monto en la segunda quincena. REBAJO ADICIONAL MEP
A153: 61 | B153: 304290150 | C153: Coto | D153: Leiva | E153: Lidia Vanessa | F153: 15.000 Col. Se adjunta recibo BNCR N° 08674691 | G153: Debe de marzo 2011 al presente (agosto 2012). Presentaba dificultad para hacer los pagos por falta de trabajo. Apenas tenga trabajo llenará formula de rebajo automático por planilla.
A154: 62 | B154: 304290150 | C154: Coto | D154: Leiva | E154: Lidia Vanessa | G154: REBAJO ADICIONAL MEP | H154: 2014-01-28
A155: 120 | B155: 304340854 | C155: Navarro | D155: Díaz | E155: Sonia Alejandra | F155: No hace | G155: Pagará 3,000 colones mensual hasta saldar la deuda. | H155: 2014-03-04
A156: 140 | B156: 304350491 | C156: Rivera | D156: Araya | E156: Emily | F156: 7,000 col. recibo CPO 0987 | G156: A partir del primer pago que reciba al iniciar a trabajar, depositaré en la cuenta del Colegio 7000 colones, una cuota adicional cada mes.
A157: 160 | B157: 304420208 | C157: Solano | D157: Sánchez | E157: Dayanna | F157: FORMULARIO LO TIENE LUIS EMILIO
A158: 34 | B158: 401210240 | C158: Calderón | D158: Arroyo | E158: Estrella María | G158: Un abono mensual consecutivo de 5mil colones
A159: 176 | B159: 401220073 | C159: Vargas | D159: Ulloa | E159: Sonia Mayela | F159: 117,570 / BN | G159: Un abono mensual de 25mil colones para abonar a la deuda. Acogerme al rebajo de planilla a partir de marzo 2014 | H159: 2014-02-12
A160: 146 | B160: 401280187 | C160: Rodríguez | D160: Madrigal | E160: Manuel | F160: 50,000. Recibo CPO 1234 | G160: Un abono mensual consecutivo de 20.000 colones para abonar a la deuda
A161: 192 | B161: 401370248 | C161: Ruiz | D161: Montero | E161: Juan Ramón | F161: 20000 | G161: un abono mensual consecutivo de 40 mil colones que depositaré en la cuenta del BCR | H161: 2014-09-11
A162: 185 | B162: 401560927 | C162: Sibaja | D162: López | E162: Mayra | F162: 15,000 CPO-1683 | G162: Depositaré en la cuenta del Colegio en el banco de Costa Rica una cuota adicional cada mes | H162: 2014-06-04
A163: 68 | B163: 401660847 | C163: Durán | D163: Rojas | E163: Argerie | F163: 121140 | G163: Acogerme al rebajo de planilla a partir de Noviembre. La cancelación del saldo la haré en el mes de Diciembre
A164: 82 | B164: 401730423 | C164: González | D164: Conejo | E164: Franky | F164: 51,438 recibo BCR 53723868 | G164: Pagará 10,000 colones por mes hasta cancelar deuda.
A165: 75 | B165: 401760479 | C165: Gallardo | D165: Escobar | E165: Sonia Mirna | G165: REBAJO ADICIONAL MEP
A166: 169 | B166: 401790511 | C166: Villegas | D166: Herrera | E166: Carolina | F166: 46042 | G166: De marzo 2011 a febrero 2012. A partir de marzo ingresa planilla MEP. Deposita en banco nacional.
A167: 127 | B167: 401790989 | C167: Oviedo | D167: Rodríguez | E167: Yesenia | F167: 24028 | G167: De julio 2011 a febrero 2012. A partir de marzo ingresa planilla MEP. Deposita en banco nacional.
A168: 1 | B168: 401800040 | C168: Chaves | D168: Cervantes | E168: Emanuel | G168: REBAJO ADICIONAL INTEGRA
A169: 156 | B169: 401800568 | C169: Sánchez | D169: Mora | E169: Maureen | F169: No hace | G169: Debe julio, agosto, setiembre, octubre y diciembre 2011, + enero 2012. Realizará dos pagos de 10.000 más uno de 6007 y los meses correspondientes.
A170: 118 | B170: 401900936 | C170: Murillo | D170: Vega | E170: Paola | F170: 10,000col. Recibo CPO 0976 | G170: Un abono mensual consecutivo de 10,000 colones para abonar a la deuda actual
A171: 121 | B171: 401970634 | C171: Nuñez | D171: Barrantes | E171: Ivannia | G171: REBAJO ADICIONAL MEP
A172: 123 | B172: 401970634 | C172: Nuñez | D172: Barrantes | E172: Ivannia | G172: REBAJO ADICIONAL MEP
A173: 13 | B173: 402000153 | C173: Álvarez | D173: Arguedas | E173: Estefanie | F173: 20000 | G173: Un solo pago por el monto adeudado | H173: 2014-06-26
A174: 110 | B174: 402050113 | C174: Montero | D174: Nuñez | E174: Viviana | F174: FORMULARIO LO TIENE LUIS EMILIO
A175: 65 | B175: 402070060 | C175: Díaz | D175: Valerio | E175: Jacqueline | F175: FORMULARIO LO TIENE LUIS EMILIO
A176: 170 | B176: 501970044 | C176: Villegas | D176: Villalta | E176: Addy | G176: REBAJO ADICIONAL MEP
A177: 175 | B177: 502020800 | C177: Granados | D177: Mayorga | E177: Coralia | F177: 20,000 recibo CPO1671 | G177: Un abono mensual de 9,767 para abonar a la deuda. Aplicarlo por medio de rebajo de planilla a partir de junio 2014 | H177: 2014-05-26
A178: 88 | B178: 502070210 | C178: Hernandez | D178: Jiménez | E178: Corina | G178: REBAJO ADICIONAL MEP
A179: 194 | B179: 502210741 | C179: Molina | D179: Juarez | E179: María Silenia | G179: A partir del primer pago que reciba al iniciar a trabajar cancelaré una cuota adicional por mes | H179: 2014-10-23
A180: 181 | B180: 502910650 | C180: Castro | D180: Sibaja | E180: Giselle | F180: 39,300 CPO-1673 | G180: A partir del primer pago que reciba al iniciar a trabajar depositaré en la cuenta del Banco Nacional una cuota adicional de 6550 cada mes | H180: 2014-05-27
A181: 102 | B181: 503340075 | C181: Martínez | D181: Cortes | E181: Adaly | F181: 5,000col. CPO-0941 | G181: Un abono mensual consecutivo de 10,000 colones para abonar a la deuda actual
A182: 187 | B182: 503460855 | C182: Cordero | D182: Bustos | E182: Leonela | F182: 24,851 CPO-1954 | G182: Un abono mensual consecutivo de 5000 colones | H182: 2014-07-08
A183: 150 | B183: 602160475 | C183: Rojas | D183: Casanova | E183: Aurelio Alejandro | F183: 25,000 recibo CPO 0723 | G183: Debía 144,587 a nov.2012, Pagará 10,000 por mes.
A184: 23 | B184: 602240042 | C184: Becerra | D184: Cerceño | E184: Azalia | G184: REBAJO ADICIONAL MEP
A185: 60 | B185: 602850040 | C185: Cortés | D185: Hernández | E185: Rosa María | F185: 15.000 Col. Se adjunta recibo de pago CPO N° 0625 | G185: Debe febrero-agosto 2011 + enero 2012. No estaba laborando esos meses. Realizará abono mensual consecutivo de 5.000 colones.
A186: 130 | B186: 602910024 | C186: Pérez | D186: Beita | E186: César Fabián | F186: - - - - - | G186: Debe de febrero a julio 2011. Realizará Un abono mensual consecutivo de C 6007 para abonar a la deuda actual. Acogerme al rebajo por planilla a partir del mes de Mayo. Me comprometo de ser posible realizar la cancelación por tal concepto antes del tiempo previsto.
A187: 51 | B187: 602940313 | C187: Chavarría | D187: Brenes | E187: Cindy Gabriela | F187: 10.000 Col. Se adjunta recibo de pago CPO N° 0589 | G187: Debe de marzo 2011 al presente (agosto 2012) más la cuota de inscripción. Presentaba dificultad para hacer los pagos por falta de trabajo. Ofrece un solo pago cuando tenga trabajo.
A188: 147 | B188: 603170171 | C188: Rodríguez | D188: Chavarría | E188: Lizeth | G188: REBAJO ADICIONAL MEP
A189: 104 | B189: 603490756 | C189: Matarrita | D189: Aguirre | E189: Yendry | F189: No hace | G189: Un abono mensual consecutivo de 4mil colones para abonar a la deuda actual, por medio del rebajo de planilla a partir de setiembre
A190: 42 | B190: 603750755 | C190: Cásares | D190: Cedeño | E190: Luis Gerardo | F190: --- | G190: Rebajar un adicional de 5mil colones por mes hasta saldar la deuda
A191: 112 | B191: 603760556 | C191: Mora | D191: Díaz | E191: Justin | G191: REBAJO ADICIONAL MEP
A192: 186 | B192: 701340117 | C192: Smith | D192: Owens | E192: Ashila | F192: 35,000 CPO- 1966 | G192: Un solo pago por el monto TOTAL ADEUDADO que depositaré en la cuenta del Colegio del Banco Nacional | H192: 2014-07-11
A193: 31 | B193: 701420637 | C193: Brenes | D193: Jiménez | E193: Jéssica | G193: Un abono mensual de 1.000 colones y a partir del primer pago que reciba depositaré un adicional de 5mi colones mensuales
A194: 39 | B194: 701660447 | C194: Carrillo | D194: Salazar | E194: Yerlin | F194: 80,000 colones 00657670 BNCR | G194: A partir del primer pago que reciba al iniciar a trabajar, cancelaré 1 cuota adicional cada mes mediante deposito en el banco nacional
A195: 191 | B195: 701810515 | C195: Abarca | D195: Vargas | E195: Eleonora Mariela | F195: 36,000 CPO- 1795 | G195: Un rebajo adicional de 6mil colones durante 6 meses | H195: 2014-07-02
A196: 15 | B196: 701850027 | C196: Araya | D196: Marín | E196: Marianela | G196: REBAJO ADICIONAL MEP
A197: 16 | B197: 701910053 | C197: Araya | D197: Juárez | E197: Evelyn | G197: REBAJO ADICIONAL MEP | H197: 2014-02-04
A198: 19 | B198: 901050715 | C198: Arias | D198: Campos | E198: Rebeca | F198: No hace | G198: Debe de abril 2011 al presente. Hará abono mensual de 15,000 colones.
A226: REBAJO ADICIONAL PLANILLA MEP Y SISTEMA PENITENCIARIO
B227: 100000000
... 421 more rows
